Workbook

Sheet Sheet1 (hidden)
A1: Fitting a probability distribution to data
L2: 3.55 | N2: min | O2: =MIN(L5:L71) -> 818.9988229
B3: annual peak flow | L3: 0.3 | N3: max | O3: =MAX(L5:L71) -> 20265.34355
A4: 1 | B4: 4293.715688 | C4: 9500.08313 | D4: 5857.884511 | G4: 0.99 | H4: =NORMSINV(1-G4) -> -2.326347874 | I4: =10^NORMINV(1-G4,$L$2,$L$3) -> 711.3701502 | Q4: random | T4: sample 1 | U4: sample 2 | V4: sample 3
A5: 2 | B5: 992.4761513 | C5: 8277.343606 | D5: 5100.510164 | G5: 0.9 | H5: =NORMSINV(1-G5) -> -1.281551566 | I5: =10^NORMINV(1-G5,$L$2,$L$3) -> 1463.977932 | J5: 1 | K5: =RAND() -> 0.4279816134 | L5: =10^NORMINV(K5,$L$2,$L$3) -> 3130.00801 | Q5: =LARGE($L$5:$L$71,J5) -> 20265.34355 | R5: =J5/68 -> 0.01470588235 | S5: =NORMSINV(1-R5) -> 2.177923069 | T5: =LARGE($B$4:$B$70,$J5) -> 14367.25799 | U5: =LARGE($C$4:$C$70,$J5) -> 18104.63974 | V5: =LARGE($D$4:$D$70,$J5) -> 18769.96979
A6: 3 | B6: 2629.090306 | C6: 4566.761054 | D6: 4942.740122 | G6: 0.75 | H6: -0.6744897502 | I6: 2226.655732 | J6: 2 | K6: =RAND() -> 0.5738027252 | L6: =10^NORMINV(K6,$L$2,$L$3) -> 4034.773956 | Q6: =LARGE($L$5:$L$71,J6) -> 17406.22836 | R6: =J6/68 -> 0.02941176471 | S6: =NORMSINV(1-R6) -> 1.88950996 | T6: =LARGE($B$4:$B$70,J6) -> 12006.85786 | U6: =LARGE($C$4:$C$70,$J6) -> 13540.00218 | V6: =LARGE($D$4:$D$70,$J6) -> 16455.37598
A7: 4 | B7: 8157.259128 | C7: 10450.64854 | D7: 4710.820422 | E7: 1000 | F7: =FREQUENCY(B4:B70,E7:E22) -> 3 | G7: 0.5 | H7: 0 | I7: 3548.133892 | J7: 3 | K7: 0.1151359469 | L7: 1549.181744 | N7: 1000 | O7: =FREQUENCY(L5:L71,N7:N22) -> 2 | Q7: 14446.89685 | R7: 0.04411764706 | S7: 1.704780905 | T7: 10694.41649 | U7: 12558.60407 | V7: 16161.01779
A8: 5 | B8: 3315.769316 | C8: 4635.330367 | D8: 747.2717801 | E8: 2000 | F8: 9 | G8: 0.25 | H8: 0.6744897502 | I8: 5653.884406 | J8: 4 | K8: 0.3910771419 | L8: 2931.204921 | N8: 2000 | O8: 15 | Q8: 8833.594243 | R8: 0.05882352941 | S8: 1.564726471 | T8: 10192.22029 | U8: 11561.38933 | V8: 12183.90834
A9: 6 | B9: 10192.22029 | C9: 18104.63974 | D9: 4826.976138 | E9: 3000 | F9: 15 | G9: 0.1 | H9: 1.281551566 | I9: 8599.346916 | J9: 5 | K9: 0.565948183 | L9: 3979.425008 | N9: 3000 | O9: 15 | Q9: 7690.854518 | R9: 0.07352941176 | S9: 1.449998909 | T9: 9621.528431 | U9: 11181.53167 | V9: 9510.333876
A10: 7 | B10: 3269.733321 | C10: 5642.720662 | D10: 3826.912862 | E10: 4000 | F10: 9 | G10: 0.05 | H10: 1.644853627 | I10: 11052.38712 | J10: 6 | K10: 0.5147992455 | L10: 3640.251721 | N10: 4000 | O10: 14 | Q10: 7498.713672 | R10: 0.08823529412 | S10: 1.35170224 | T10: 9478.345513 | U10: 11002.30631 | V10: 8464.646812
A11: 8 | B11: 12006.85786 | C11: 2981.485573 | D11: 12183.90834 | E11: 5000 | F11: 10 | G11: 0.02 | H11: 2.053748911 | I11: 14659.68617 | J11: 7 | K11: 0.09230727778 | L11: 1419.04444 | N11: 5000 | O11: 8 | Q11: 7155.249505 | R11: 0.1029411765 | S11: 1.264969245 | T11: 8273.31208 | U11: 10450.64854 | V11: 8165.085598
A12: 9 | B12: 2441.430012 | C12: 1940.008818 | D12: 2804.006034 | E12: 6000 | F12: 8 | G12: 0.01 | H12: 2.326347874 | I12: 17697.19198 | J12: 8 | K12: 0.5318680556 | L12: 3749.643287 | N12: 6000 | O12: 1 | Q12: 6854.665116 | R12: 0.1176470588 | S12: 1.186831433 | T12: 8157.259128 | U12: 9759.057905 | V12: 8051.056367
A13: 10 | B13: 5056.627678 | C13: 3088.910935 | D13: 3020.790559 | E13: 7000 | F13: 2 | G13: 0.005 | H13: 2.575829304 | I13: 21025.61903 | J13: 9 | K13: 0.7857986635 | L13: 6131.664628 | N13: 7000 | O13: 5 | Q13: 6776.700125 | R13: 0.1323529412 | S13: 1.115337358 | T13: 7905.444228 | U13: 9620.361154 | V13: 7667.268199
A14: 11 | B14: 4460.729881 | C14: 1923.380703 | D14: 1822.614132 | E14: 8000 | F14: 3 | J14: 10 | K14: 0.2025235 | L14: 1996.216213 | N14: 8000 | O14: 3 | Q14: 6700.983717 | R14: 0.1470588235 | S14: 1.049131398 | T14: 7391.342037 | U14: 9500.08313 | V14: 7638.365183
A15: 12 | B15: 5555.837806 | C15: 6370.629248 | D15: 2954.413749 | E15: 9000 | F15: 2 | J15: 11 | K15: 0.9941740217 | L15: 20265.34355 | N15: 9000 | O15: 1 | Q15: 6345.321178 | R15: 0.1617647059 | S15: 0.987230992 | T15: 7093.371861 | U15: 8797.574538 | V15: 6986.241776
A16: 13 | B16: 3277.995103 | C16: 9620.361154 | D16: 4165.729132 | E16: 10000 | F16: 2 | H16: =MAX(B4:B70) -> 14367.25799 | J16: 12 | K16: 0.5030888662 | L16: 3567.161853 | N16: 10000 | O16: 0 | Q16: 6131.664628 | R16: 0.1764705882 | S16: 0.9288994916 | T16: 6848.861404 | U16: 8598.590846 | V16: 6692.784183
A17: 14 | B17: 5281.333192 | C17: 2738.480349 | D17: 6986.241776 | E17: 11000 | F17: 2 | J17: 13 | K17: 0.3922016196 | L17: 2937.138146 | N17: 11000 | O17: 0 | Q17: 5514.49224 | R17: 0.1911764706 | S17: 0.8735691346 | T17: 6609.603542 | U17: 8277.343606 | V17: 6547.841922
A18: 15 | B18: 3176.904028 | C18: 4523.658115 | D18: 3474.486858 | E18: 12000 | F18: 0 | J18: 14 | K18: 0.6795385252 | L18: 4896.915668 | N18: 12000 | O18: 0 | Q18: 4896.915668 | R18: 0.2058823529 | S18: 0.8207920883 | T18: 5689.256053 | U18: 8168.440358 | V18: 6370.939732
A19: 16 | B19: 3418.731784 | C19: 3464.701942 | D19: 4240.804224 | E19: 13000 | F19: 1 | J19: 15 | K19: 0.4097792226 | L19: 3030.8617 | N19: 13000 | O19: 0 | Q19: 4840.887079 | R19: 0.2205882353 | S19: 0.7702080819 | T19: 5665.050123 | U19: 7553.590816 | V19: 6138.210454
A20: 17 | B20: 746.2212333 | C20: 8168.440358 | D20: 4500.707695 | E20: 14000 | F20: 0 | J20: 16 | K20: 0.3477105301 | L20: 2707.368111 | N20: 14000 | O20: 0 | Q20: 4781.854898 | R20: 0.2352941176 | S20: 0.721522284 | T20: 5646.463892 | U20: 7338.814574 | V20: 6078.580775
A21: 18 | B21: 5631.95704 | C21: 4783.37572 | D21: 4776.209642 | E21: 15000 | F21: 1 | J21: 17 | K21: 0.2079491318 | L21: 2022.705381 | N21: 15000 | O21: 1 | Q21: 4507.622127 | R21: 0.25 | S21: 0.6744897502 | T21: 5631.95704 | U21: 7285.289908 | V21: 5953.380761
A22: 19 | B22: 1658.945623 | C22: 4514.267343 | D22: 3883.252776 | E22: 16000 | F22: 0 | J22: 18 | K22: 0.01690253944 | L22: 818.9988229 | N22: 16000 | O22: 0 | Q22: 4383.376333 | R22: 0.2647058824 | S22: 0.6289042176 | T22: 5555.837806 | U22: 7264.231107 | V22: 5857.884511
A23: 20 | B23: 4538.914927 | C23: 3568.079418 | D23: 3403.429334 | J23: 19 | K23: 0.9789526095 | L23: 14446.89685 | Q23: 4253.35931 | R23: 0.2794117647 | S23: 0.5845898571 | T23: 5298.817802 | U23: 7210.732984 | V23: 5646.247879
A24: 21 | B24: 2985.779302 | C24: 5318.379438 | D24: 1085.619874 | J24: 20 | K24: 0.9893422485 | L24: 17406.22836 | Q24: 4148.205049 | R24: 0.2941176471 | S24: 0.5413950851 | T24: 5281.333192 | U24: 6933.115448 | V24: 5332.587136
A25: 22 | B25: 6848.861404 | C25: 2807.488789 | D25: 16455.37598 | J25: 21 | K25: 0.5894773443 | L25: 4148.205049 | Q25: 4034.773956 | R25: 0.3088235294 | S25: 0.4991878421 | T25: 5056.627678 | U25: 6749.901125 | V25: 5100.510164
A26: 23 | B26: 1549.169262 | C26: 5873.771106 | D26: 4430.245187 | J26: 22 | K26: 0.8450462013 | L26: 7155.249505 | Q26: 3979.425008 | R26: 0.3235294118 | S26: 0.457851931 | T26: 4699.721557 | U26: 6370.629248 | V26: 5038.488926
A27: 24 | B27: 4051.291338 | C27: 8797.574538 | D27: 8464.646812 | J27: 23 | K27: 0.1538671868 | L27: 1753.895606 | Q27: 3959.600137 | R27: 0.3382352941 | S27: 0.4172841394 | T27: 4538.914927 | U27: 5873.771106 | V27: 4974.80818
A28: 25 | B28: 975.2916806 | C28: 4540.661661 | D28: 6138.210454 | J28: 24 | K28: 0.3704510175 | L28: 2823.594219 | Q28: 3918.487314 | R28: 0.3529411765 | S28: 0.3773919438 | T28: 4460.729881 | U28: 5843.412015 | V28: 4942.740122
A29: 26 | B29: 1260.136172 | C29: 2603.369695 | D29: 9510.333876 | J29: 25 | K29: 0.4142007226 | L29: 3054.740567 | Q29: 3803.467345 | R29: 0.3676470588 | S29: 0.3380916568 | T29: 4355.093012 | U29: 5647.050599 | V29: 4867.42037
A30: 27 | B30: 4355.093012 | C30: 7264.231107 | D30: 3478.994302 | J30: 26 | K30: 0.3944882661 | L30: 2949.225883 | Q30: 3749.643287 | R30: 0.3823529412 | S30: 0.2993069105 | T30: 4293.715688 | U30: 5642.720662 | V30: 4855.574026
A31: 28 | B31: 9621.528431 | C31: 3439.55133 | D31: 2055.404856 | J31: 27 | K31: 0.108089685 | L31: 1509.991713 | Q31: 3720.216259 | R31: 0.3970588235 | S31: 0.2609674004 | T31: 4214.105835 | U31: 5318.379438 | V31: 4826.976138
A32: 29 | B32: 5298.817802 | C32: 11002.30631 | D32: 6692.784183 | J32: 28 | K32: 0.5400655941 | L32: 3803.467345 | Q32: 3640.251721 | R32: 0.4117647059 | S32: 0.2230078309 | T32: 4182.1133 | U32: 5301.889551 | V32: 4776.209642
A33: 30 | B33: 7093.371861 | C33: 2190.525308 | D33: 2968.390496 | J33: 29 | K33: 0.4206275246 | L33: 3089.679887 | Q33: 3567.161853 | R33: 0.4264705882 | S33: 0.1853670173 | T33: 4144.891196 | U33: 5031.447866 | V33: 4710.820422
A34: 31 | B34: 14367.25799 | C34: 3018.453525 | D34: 2471.277151 | J34: 30 | K34: 0.5273303177 | L34: 3720.216259 | Q34: 3299.559395 | R34: 0.4411764706 | S34: 0.1479871097 | T34: 4051.291338 | U34: 4938.7259 | V34: 4500.707695
A35: 32 | B35: 2625.538675 | C35: 13540.00218 | D35: 4855.574026 | J35: 31 | K35: 0.1467563804 | L35: 1717.378315 | Q35: 3256.456007 | R35: 0.4558823529 | S35: 0.1108129123 | T35: 4042.928716 | U35: 4783.37572 | V35: 4430.245187
A36: 33 | B36: 1898.461947 | C36: 2108.639792 | D36: 5038.488926 | J36: 32 | K36: 0.4581296494 | L36: 3299.559395 | Q36: 3130.00801 | R36: 0.4705882353 | S36: 0.07379127381 | T36: 3913.693946 | U36: 4710.112275 | V36: 4240.804224
A37: 34 | B37: 8273.31208 | C37: 2710.116851 | D37: 3449.123226 | J37: 33 | K37: 0.6035089738 | L37: 4253.35931 | Q37: 3089.679887 | R37: 0.4852941176 | S37: 0.03687053266 | T37: 3551.594419 | U37: 4635.330367 | V37: 4165.729132
A38: 35 | B38: 5646.463892 | C38: 1297.511748 | D38: 2524.73038 | J38: 34 | K38: 0.08850583108 | L38: 1396.355368 | Q38: 3054.740567 | R38: 0.5 | S38: 0 | T38: 3418.731784 | U38: 4624.663351 | V38: 3883.252776
A39: 36 | B39: 3551.594419 | C39: 7210.732984 | D39: 3085.673574 | J39: 35 | K39: 0.132565057 | L39: 1643.220083 | Q39: 3030.8617 | R39: 0.5147058824 | S39: -0.03687053266 | T39: 3354.084518 | U39: 4566.761054 | V39: 3826.912862
A40: 37 | B40: 2041.454088 | C40: 6749.901125 | D40: 6370.939732 | J40: 36 | K40: 0.06778042337 | L40: 1265.440336 | Q40: 2975.841386 | R40: 0.5294117647 | S40: -0.07379127381 | T40: 3315.769316 | U40: 4540.661661 | V40: 3478.994302
A41: 38 | B41: 2700.096208 | C41: 7553.590816 | D41: 5332.587136 | J41: 37 | K41: 0.05036071389 | L41: 1141.800289 | Q41: 2949.225883 | R41: 0.5441176471 | S41: -0.1108129123 | T41: 3277.995103 | U41: 4523.658115 | V41: 3474.486858
A42: 39 | B42: 1545.030827 | C42: 4938.7259 | D42: 18769.96979 | J42: 38 | K42: 0.8297777819 | L42: 6854.665116 | Q42: 2937.138146 | R42: 0.5588235294 | S42: -0.1479871097 | T42: 3269.733321 | U42: 4514.267343 | V42: 3449.123226
A43: 40 | B43: 2064.161398 | C43: 3094.522922 | D43: 1332.208257 | J43: 39 | K43: 0.1590212571 | L43: 1780.137033 | Q43: 2931.204921 | R43: 0.5735294118 | S43: -0.1853670173 | T43: 3176.904028 | U43: 4135.11718 | V43: 3444.348484
A44: 41 | B44: 1850.79769 | C44: 6933.115448 | D44: 2877.988543 | J44: 40 | K44: 0.02792821777 | L44: 947.0082874 | Q44: 2847.238559 | R44: 0.5882352941 | S44: -0.2230078309 | T44: 3164.828316 | U44: 4095.500359 | V44: 3403.429334
A45: 42 | B45: 6609.603542 | C45: 5031.447866 | D45: 1638.501599 | J45: 41 | K45: 0.07670066597 | L45: 1323.469908 | Q45: 2823.594219 | R45: 0.6029411765 | S45: -0.2609674004 | T45: 2985.779302 | U45: 3763.79898 | V45: 3320.631662
A46: 43 | B46: 1210.892176 | C46: 12558.60407 | D46: 3444.348484 | J46: 42 | K46: 0.5631016543 | L46: 3959.600137 | Q46: 2804.044762 | R46: 0.6176470588 | S46: -0.2993069105 | T46: 2864.207894 | U46: 3568.079418 | V46: 3274.262507
A47: 44 | B47: 2712.063505 | C47: 3394.014391 | D47: 4974.80818 | J47: 43 | K47: 0.4505853434 | L47: 3256.456007 | Q47: 2761.806729 | R47: 0.6323529412 | S47: -0.3380916568 | T47: 2844.970978 | U47: 3464.701942 | V47: 3272.987184
A48: 45 | B48: 2828.021025 | C48: 4135.11718 | D48: 1494.148525 | J48: 44 | K48: 0.8686250756 | L48: 7690.854518 | Q48: 2707.368111 | R48: 0.6470588235 | S48: -0.3773919438 | T48: 2828.021025 | U48: 3439.55133 | V48: 3096.412574
A49: 46 | B49: 3913.693946 | C49: 3163.507961 | D49: 3320.631662 | J49: 45 | K49: 0.6735545855 | L49: 4840.887079 | Q49: 2683.729353 | R49: 0.6617647059 | S49: -0.4172841394 | T49: 2754.675066 | U49: 3394.014391 | V49: 3085.673574
A50: 47 | B50: 10694.41649 | C50: 1580.674727 | D50: 3043.2548 | J50: 46 | K50: 0.3584185882 | L50: 2761.806729 | Q50: 2594.728688 | R50: 0.6764705882 | S50: -0.457851931 | T50: 2712.063505 | U50: 3163.507961 | V50: 3053.756662
A51: 48 | B51: 2864.207894 | C51: 1147.417764 | D51: 2809.140699 | J51: 47 | K51: 0.3750198013 | L51: 2847.238559 | Q51: 2528.252579 | R51: 0.6911764706 | S51: -0.4991878421 | T51: 2700.096208 | U51: 3094.522922 | V51: 3043.2548
A52: 49 | B52: 2020.574723 | C52: 2953.637183 | D52: 8051.056367 | J52: 48 | K52: 0.9066589511 | L52: 8833.594243 | Q52: 2335.849895 | R52: 0.7058823529 | S52: -0.5413950851 | T52: 2629.090306 | U52: 3088.910935 | V52: 3020.790559
A53: 50 | B53: 9478.345513 | C53: 861.6278562 | D53: 1676.334372 | J53: 49 | K53: 0.05550809003 | L53: 1180.068771 | Q53: 2150.618096 | R53: 0.7205882353 | S53: -0.5845898571 | T53: 2625.538675 | U53: 3018.453525 | V53: 2968.390496
A54: 51 | B54: 1555.882867 | C54: 3763.79898 | D54: 3096.412574 | J54: 50 | K54: 0.3995028716 | L54: 2975.841386 | Q54: 2022.705381 | R54: 0.7352941176 | S54: -0.6289042176 | T54: 2488.190466 | U54: 2981.485573 | V54: 2954.413749
A55: 52 | B55: 3354.084518 | C55: 7285.289908 | D55: 4867.42037 | J55: 51 | K55: 0.8213342764 | L55: 6700.983717 | Q55: 1997.532541 | R55: 0.75 | S55: -0.6744897502 | T55: 2441.430012 | U55: 2966.279756 | V55: 2877.988543
A56: 53 | B56: 2488.190466 | C56: 5843.412015 | D56: 7667.268199 | J56: 52 | K56: 0.6355133796 | L56: 4507.622127 | Q56: 1996.216213 | R56: 0.7647058824 | S56: -0.721522284 | T56: 2219.976826 | U56: 2953.637183 | V56: 2809.140699
A57: 54 | B57: 4699.721557 | C57: 9759.057905 | D57: 7638.365183 | J57: 53 | K57: 0.3430312537 | L57: 2683.729353 | Q57: 1823.222602 | R57: 0.7794117647 | S57: -0.7702080819 | T57: 2064.161398 | U57: 2807.488789 | V57: 2804.006034
A58: 55 | B58: 7905.444228 | C58: 11181.53167 | D58: 2118.576793 | J58: 54 | K58: 0.7383776393 | L58: 5514.49224 | Q58: 1780.137033 | R58: 0.7941176471 | S58: -0.8207920883 | T58: 2041.454088 | U58: 2738.480349 | V58: 2524.73038
A59: 56 | B59: 4144.891196 | C59: 2563.176149 | D59: 5953.380761 | J59: 55 | K59: 0.3666583727 | L59: 2804.044762 | Q59: 1753.895606 | R59: 0.8088235294 | S59: -0.8735691346 | T59: 2020.574723 | U59: 2710.116851 | V59: 2471.277151
A60: 57 | B60: 5665.050123 | C60: 2025.734912 | D60: 1556.211066 | J60: 56 | K60: 0.8255506422 | L60: 6776.700125 | Q60: 1717.378315 | R60: 0.8235294118 | S60: -0.9288994916 | T60: 1908.442966 | U60: 2603.369695 | V60: 2314.278842
A61: 58 | B61: 3164.828316 | C61: 7338.814574 | D61: 3053.756662 | J61: 57 | K61: 0.3118552343 | L61: 2528.252579 | Q61: 1643.220083 | R61: 0.8382352941 | S61: -0.987230992 | T61: 1898.461947 | U61: 2563.176149 | V61: 2168.423397
A62: 59 | B62: 4042.928716 | C62: 11561.38933 | D62: 6078.580775 | J62: 58 | K62: 0.1675561348 | L62: 1823.222602 | Q62: 1549.181744 | R62: 0.8529411765 | S62: -1.049131398 | T62: 1850.79769 | U62: 2190.525308 | V62: 2118.576793
A63: 60 | B63: 7391.342037 | C63: 4710.112275 | D63: 16161.01779 | J63: 59 | K63: 0.2725285178 | L63: 2335.849895 | Q63: 1509.991713 | R63: 0.8676470588 | S63: -1.115337358 | T63: 1658.945623 | U63: 2108.639792 | V63: 2055.404856
A64: 61 | B64: 1908.442966 | C64: 2966.279756 | D64: 3272.987184 | J64: 60 | K64: 0.325264714 | L64: 2594.728688 | Q64: 1419.04444 | R64: 0.8823529412 | S64: -1.186831433 | T64: 1555.882867 | U64: 2025.734912 | V64: 1822.614132
A65: 62 | B65: 4182.1133 | C65: 1435.979752 | D65: 2314.278842 | J65: 61 | K65: 0.2027927853 | L65: 1997.532541 | Q65: 1396.355368 | R65: 0.8970588235 | S65: -1.264969245 | T65: 1549.169262 | U65: 1940.008818 | V65: 1676.334372
A66: 63 | B66: 2844.970978 | C66: 8598.590846 | D66: 2168.423397 | J66: 62 | K66: 0.7999694262 | L66: 6345.321178 | Q66: 1323.469908 | R66: 0.9117647059 | S66: -1.35170224 | T66: 1545.030827 | U66: 1923.380703 | V66: 1638.501599
A67: 64 | B67: 2219.976826 | C67: 4624.663351 | D67: 6547.841922 | J67: 63 | K67: 0.5571424293 | L67: 3918.487314 | Q67: 1265.440336 | R67: 0.9264705882 | S67: -1.449998909 | T67: 1260.136172 | U67: 1580.674727 | V67: 1556.211066
A68: 65 | B68: 5689.256053 | C68: 5647.050599 | D68: 3274.262507 | J68: 64 | K68: 0.6202087914 | L68: 4383.376333 | Q68: 1180.068771 | R68: 0.9411764706 | S68: -1.564726471 | T68: 1210.892176 | U68: 1435.979752 | V68: 1494.148525
A69: 66 | B69: 4214.105835 | C69: 5301.889551 | D69: 8165.085598 | J69: 65 | K69: 0.2342907382 | L69: 2150.618096 | Q69: 1141.800289 | R69: 0.9558823529 | S69: -1.704780905 | T69: 992.4761513 | U69: 1297.511748 | V69: 1332.208257
A70: 67 | B70: 2754.675066 | C70: 4095.500359 | D70: 5646.247879 | J70: 66 | K70: =RAND() -> 0.6671249248 | L70: =10^NORMINV(K70,$L$2,$L$3) -> 4781.854898 | Q70: =LARGE($L$5:$L$71,J70) -> 947.0082874 | R70: =J70/68 -> 0.9705882353 | S70: =NORMSINV(1-R70) -> -1.88950996 | T70: =LARGE($B$4:$B$70,J70) -> 975.2916806 | U70: =LARGE($C$4:$C$70,$J70) -> 1147.417764 | V70: =LARGE($D$4:$D$70,$J70) -> 1085.619874
J71: 67 | K71: 0.8606599694 | L71: 7498.713672 | Q71: 818.9988229 | R71: 0.9852941176 | S71: -2.177923069 | T71: 746.2212333 | U71: 861.6278562 | V71: 747.2717801

Sheet data set
A1: Fitting a probability distribution to data | U1: Weibull
C2: annual | U2: plotting | V2: deviate of | W2: ranked
B3: year | C3: peak flow | U3: position | V3: plot pos | W3: flows
A4: 1 | B4: 1936 | C4: 4294 | T4: 1 | U4: =T4/($T$70+1) -> 0.01470588235 | V4: =NORMSINV(1-U4) -> 2.177923069 | W4: =LARGE($C$4:$C$70,T4) -> 14367
A5: 2 | B5: 1937 | C5: 992 | E5: min flow = | F5: =MIN(C4:C70) -> 746 | T5: 2 | U5: =T5/($T$70+1) -> 0.02941176471 | V5: =NORMSINV(1-U5) -> 1.88950996 | W5: =LARGE($C$4:$C$70,T5) -> 12007
A6: 3 | B6: 1938 | C6: 2629 | E6: max flow = | F6: =MAX(C4:C70) -> 14367 | T6: 3 | U6: 0.04411764706 | V6: 1.704780905 | W6: 10694
A7: 4 | B7: 1939 | C7: 8157 | E7: average = | F7: =AVERAGE(C4:C70) -> 4347.19403 | T7: 4 | U7: 0.05882352941 | V7: 1.564726471 | W7: 10192
A8: 5 | B8: 1940 | C8: 3316 | E8: std. dev = | F8: =STDEV(C4:C70) -> 2839.512822 | T8: 5 | U8: 0.07352941176 | V8: 1.449998909 | W8: 9622
A9: 6 | B9: 1941 | C9: 10192 | E9: skew = | F9: =SKEW(C4:C70) -> 1.381194753 | T9: 6 | U9: 0.08823529412 | V9: 1.35170224 | W9: 9478
A10: 7 | B10: 1942 | C10: 3270 | E10: sample size = | F10: =COUNT(C4:C70) -> 67 | T10: 7 | U10: 0.1029411765 | V10: 1.264969245 | W10: 8273
A11: 8 | B11: 1943 | C11: 12007 | T11: 8 | U11: 0.1176470588 | V11: 1.186831433 | W11: 8157
A12: 9 | B12: 1944 | C12: 2441 | T12: 9 | U12: 0.1323529412 | V12: 1.115337358 | W12: 7905
A13: 10 | B13: 1945 | C13: 5057 | T13: 10 | U13: 0.1470588235 | V13: 1.049131398 | W13: 7391
A14: 11 | B14: 1946 | C14: 4461 | T14: 11 | U14: 0.1617647059 | V14: 0.987230992 | W14: 7093
A15: 12 | B15: 1947 | C15: 5556 | T15: 12 | U15: 0.1764705882 | V15: 0.9288994916 | W15: 6849
A16: 13 | B16: 1948 | C16: 3278 | T16: 13 | U16: 0.1911764706 | V16: 0.8735691346 | W16: 6610
A17: 14 | B17: 1949 | C17: 5281 | T17: 14 | U17: 0.2058823529 | V17: 0.8207920883 | W17: 5689
A18: 15 | B18: 1950 | C18: 3177 | G18: histogram | I18: relative | J18: cumulative | T18: 15 | U18: 0.2205882353 | V18: 0.7702080819 | W18: 5665
A19: 16 | B19: 1951 | C19: 3419 | H19: frequency() | I19: frequency | J19: frequency | K19: index value | T19: 16 | U19: 0.2352941176 | V19: 0.721522284 | W19: 5646
A20: 17 | B20: 1952 | C20: 746 | G20: 0 | T20: 17 | U20: 0.25 | V20: 0.6744897502 | W20: 5632
A21: 18 | B21: 1953 | C21: 5632 | G21: 1000 | H21: =FREQUENCY(C4:C70,G21:G36) -> 3 | I21: =H21/$H$38 -> 0.0447761194 | J21: =I21+J20 -> 0.0447761194 | K21: =AVERAGE(G20:G21) -> 500 | T21: 18 | U21: 0.2647058824 | V21: 0.6289042176 | W21: 5556
A22: 19 | B22: 1954 | C22: 1659 | G22: 2000 | H22: 9 | I22: =H22/$H$38 -> 0.1343283582 | J22: =I22+J21 -> 0.1791044776 | K22: 1500 | T22: 19 | U22: 0.2794117647 | V22: 0.5845898571 | W22: 5299
A23: 20 | B23: 1955 | C23: 4539 | G23: 3000 | H23: 15 | I23: 0.223880597 | J23: 0.4029850746 | K23: 2500 | T23: 20 | U23: 0.2941176471 | V23: 0.5413950851 | W23: 5281
A24: 21 | B24: 1956 | C24: 2986 | G24: 4000 | H24: 9 | I24: 0.1343283582 | J24: 0.5373134328 | K24: 3500 | T24: 21 | U24: 0.3088235294 | V24: 0.4991878421 | W24: 5057
A25: 22 | B25: 1957 | C25: 6849 | G25: 5000 | H25: 10 | I25: 0.1492537313 | J25: 0.6865671642 | K25: 4500 | T25: 22 | U25: 0.3235294118 | V25: 0.457851931 | W25: 4700
A26: 23 | B26: 1958 | C26: 1549 | G26: 6000 | H26: 8 | I26: 0.1194029851 | J26: 0.8059701493 | K26: 5500 | T26: 23 | U26: 0.3382352941 | V26: 0.4172841394 | W26: 4539
A27: 24 | B27: 1959 | C27: 4051 | G27: 7000 | H27: 2 | I27: 0.02985074627 | J27: 0.8358208955 | K27: 6500 | T27: 24 | U27: 0.3529411765 | V27: 0.3773919438 | W27: 4461
A28: 25 | B28: 1960 | C28: 975 | G28: 8000 | H28: 3 | I28: 0.0447761194 | J28: 0.8805970149 | K28: 7500 | T28: 25 | U28: 0.3676470588 | V28: 0.3380916568 | W28: 4355
A29: 26 | B29: 1961 | C29: 1260 | G29: 9000 | H29: 2 | I29: 0.02985074627 | J29: 0.9104477612 | K29: 8500 | T29: 26 | U29: 0.3823529412 | V29: 0.2993069105 | W29: 4294
A30: 27 | B30: 1962 | C30: 4355 | G30: 10000 | H30: 2 | I30: 0.02985074627 | J30: 0.9402985075 | K30: 9500 | T30: 27 | U30: 0.3970588235 | V30: 0.2609674004 | W30: 4214
A31: 28 | B31: 1963 | C31: 9622 | G31: 11000 | H31: 2 | I31: 0.02985074627 | J31: 0.9701492537 | K31: 10500 | T31: 28 | U31: 0.4117647059 | V31: 0.2230078309 | W31: 4182
A32: 29 | B32: 1964 | C32: 5299 | G32: 12000 | H32: 0 | I32: 0 | J32: 0.9701492537 | K32: 11500 | T32: 29 | U32: 0.4264705882 | V32: 0.1853670173 | W32: 4145
A33: 30 | B33: 1965 | C33: 7093 | G33: 13000 | H33: 1 | I33: 0.01492537313 | J33: 0.9850746269 | K33: 12500 | T33: 30 | U33: 0.4411764706 | V33: 0.1479871097 | W33: 4051
A34: 31 | B34: 1966 | C34: 14367 | G34: 14000 | H34: 0 | I34: 0 | J34: 0.9850746269 | K34: 13500 | T34: 31 | U34: 0.4558823529 | V34: 0.1108129123 | W34: 4043
A35: 32 | B35: 1967 | C35: 2626 | G35: 15000 | H35: 1 | I35: 0.01492537313 | J35: 1 | K35: 14500 | T35: 32 | U35: 0.4705882353 | V35: 0.07379127381 | W35: 3914
A36: 33 | B36: 1968 | C36: 1898 | G36: 16000 | H36: 0 | I36: 0 | J36: 1 | K36: 15500 | T36: 33 | U36: 0.4852941176 | V36: 0.03687053266 | W36: 3552
A37: 34 | B37: 1969 | C37: 8273 | T37: 34 | U37: 0.5 | V37: 0 | W37: 3419
A38: 35 | B38: 1970 | C38: 5646 | G38: sample size: | H38: =SUM(H21:H36) -> 67 | I38: =SUM(I21:I36) -> 1 | T38: 35 | U38: 0.5147058824 | V38: -0.03687053266 | W38: 3354
A39: 36 | B39: 1971 | C39: 3552 | T39: 36 | U39: 0.5294117647 | V39: -0.07379127381 | W39: 3316
A40: 37 | B40: 1972 | C40: 2041 | T40: 37 | U40: 0.5441176471 | V40: -0.1108129123 | W40: 3278
A41: 38 | B41: 1973 | C41: 2700 | T41: 38 | U41: 0.5588235294 | V41: -0.1479871097 | W41: 3270
A42: 39 | B42: 1974 | C42: 1545 | T42: 39 | U42: 0.5735294118 | V42: -0.1853670173 | W42: 3177
A43: 40 | B43: 1975 | C43: 2064 | T43: 40 | U43: 0.5882352941 | V43: -0.2230078309 | W43: 3165
A44: 41 | B44: 1976 | C44: 1851 | T44: 41 | U44: 0.6029411765 | V44: -0.2609674004 | W44: 2986
A45: 42 | B45: 1977 | C45: 6610 | T45: 42 | U45: 0.6176470588 | V45: -0.2993069105 | W45: 2864
A46: 43 | B46: 1978 | C46: 1211 | T46: 43 | U46: 0.6323529412 | V46: -0.3380916568 | W46: 2845
A47: 44 | B47: 1979 | C47: 2712 | T47: 44 | U47: 0.6470588235 | V47: -0.3773919438 | W47: 2828
A48: 45 | B48: 1980 | C48: 2828 | T48: 45 | U48: 0.6617647059 | V48: -0.4172841394 | W48: 2755
A49: 46 | B49: 1981 | C49: 3914 | T49: 46 | U49: 0.6764705882 | V49: -0.457851931 | W49: 2712
A50: 47 | B50: 1982 | C50: 10694 | T50: 47 | U50: 0.6911764706 | V50: -0.4991878421 | W50: 2700
A51: 48 | B51: 1983 | C51: 2864 | T51: 48 | U51: 0.7058823529 | V51: -0.5413950851 | W51: 2629
A52: 49 | B52: 1984 | C52: 2021 | T52: 49 | U52: 0.7205882353 | V52: -0.5845898571 | W52: 2626
A53: 50 | B53: 1985 | C53: 9478 | T53: 50 | U53: 0.7352941176 | V53: -0.6289042176 | W53: 2488
A54: 51 | B54: 1986 | C54: 1556 | T54: 51 | U54: 0.75 | V54: -0.6744897502 | W54: 2441
A55: 52 | B55: 1987 | C55: 3354 | T55: 52 | U55: 0.7647058824 | V55: -0.721522284 | W55: 2220
A56: 53 | B56: 1988 | C56: 2488 | T56: 53 | U56: 0.7794117647 | V56: -0.7702080819 | W56: 2064
A57: 54 | B57: 1989 | C57: 4700 | T57: 54 | U57: 0.7941176471 | V57: -0.8207920883 | W57: 2041
A58: 55 | B58: 1990 | C58: 7905 | T58: 55 | U58: 0.8088235294 | V58: -0.8735691346 | W58: 2021
A59: 56 | B59: 1991 | C59: 4145 | T59: 56 | U59: 0.8235294118 | V59: -0.9288994916 | W59: 1908
A60: 57 | B60: 1992 | C60: 5665 | T60: 57 | U60: 0.8382352941 | V60: -0.987230992 | W60: 1898
A61: 58 | B61: 1993 | C61: 3165 | T61: 58 | U61: 0.8529411765 | V61: -1.049131398 | W61: 1851
A62: 59 | B62: 1994 | C62: 4043 | T62: 59 | U62: 0.8676470588 | V62: -1.115337358 | W62: 1659
A63: 60 | B63: 1995 | C63: 7391 | T63: 60 | U63: 0.8823529412 | V63: -1.186831433 | W63: 1556
A64: 61 | B64: 1996 | C64: 1908 | T64: 61 | U64: 0.8970588235 | V64: -1.264969245 | W64: 1549
A65: 62 | B65: 1997 | C65: 4182 | T65: 62 | U65: 0.9117647059 | V65: -1.35170224 | W65: 1545
A66: 63 | B66: 1998 | C66: 2845 | T66: 63 | U66: 0.9264705882 | V66: -1.449998909 | W66: 1260
A67: 64 | B67: 1999 | C67: 2220 | T67: 64 | U67: 0.9411764706 | V67: -1.564726471 | W67: 1211
A68: 65 | B68: 2000 | C68: 5689 | T68: 65 | U68: 0.9558823529 | V68: -1.704780905 | W68: 992
A69: 66 | B69: 2001 | C69: 4214 | T69: 66 | U69: =T69/($T$70+1) -> 0.9705882353 | V69: =NORMSINV(1-U69) -> -1.88950996 | W69: =LARGE($C$4:$C$70,T69) -> 975
A70: 67 | B70: 2002 | C70: 2755 | T70: 67 | U70: 0.9852941176 | V70: -2.177923069 | W70: 746

Sheet Uniform
A1: Fitting a probability distribution to data | W1: Weibull | Z1: =CORREL(Z4:Z70,W4:W70) -> 0.9118094774 | AO1: interpolation | AQ1: A | AR1: B | AS1: C | AT1: E
C2: annual | W2: plotting | X2: deviate of | Y2: ranked | Z2: uniform distribution | AQ2: first | AS2: second
B3: year | C3: peak flow | W3: position | X3: plot pos | Y3: flows | Z3: p | AA3: quantile | AK3: exc prob | AL3: dev | AM3: CDF | AO3: lower | AP3: upper | AQ3: lower | AR3: upper | AS3: lower | AT3: upper | AU3: interp
A4: 1 | B4: 1936 | C4: 4294 | V4: 1 | W4: =V4/($V$70+1) -> 0.01470588235 | X4: =NORMSINV(1-W4) -> 2.177923069 | Y4: =LARGE($C$4:$C$70,V4) -> 14367 | Z4: =1-(Y4-$G$9)/($G$10-$G$9) -> 0.0422 | AA4: =$G$9+($G$10-$G$9)*(1-W4) -> 14779.41176 | AK4: 0.98 | AL4: =NORMSINV(1-AK4) -> -2.053748911 | AM4: =AU4 ->  | AO4: =MATCH(1-AK4,$K$17:$K$32,1) ->  | AP4: =IF(AO4<16,AO4+1,AO4) ->  | AQ4: =IF(AO4<>AP4,INDEX($I$17:$I$32,AO4),INDEX($I$17:$I$32,AO4-1)) ->  | AR4: =INDEX($I$17:$I$32,AP4) ->  | AS4: =IF(AO4<>AP4,INDEX($K$17:$K$32,AO4),INDEX($K$17:$K$32,AO4-1)) ->  | AT4: =INDEX($K$17:$K$32,AP4) ->  | AU4: =AQ4+(AR4-AQ4)*(1-AK4-AS4)/(AT4-AS4) -> 
A5: 2 | B5: 1937 | C5: 992 | V5: 2 | W5: =V5/($V$70+1) -> 0.02941176471 | X5: =NORMSINV(1-W5) -> 1.88950996 | Y5: =LARGE($C$4:$C$70,V5) -> 12007 | Z5: 0.1995333333 | AA5: 14558.82353 | AK5: 0.95 | AL5: -1.644853627 | AM5: =AU5 -> 750 | AO5: =MATCH(1-AK5,$K$17:$K$32,1) -> 1 | AP5: 2 | AQ5: =IF(AO5<>AP5,INDEX($I$17:$I$32,AO5),INDEX($I$17:$I$32,AO5-1)) -> 500 | AR5: =INDEX($I$17:$I$32,AP5) -> 1500 | AS5: =IF(AO5<>AP5,INDEX($K$17:$K$32,AO5),INDEX($K$17:$K$32,AO5-1)) -> 0.03333333333 | AT5: =INDEX($K$17:$K$32,AP5) -> 0.1 | AU5: =AQ5+(AR5-AQ5)*(1-AK5-AS5)/(AT5-AS5) -> 750
A6: 3 | B6: 1938 | C6: 2629 | F6: fit a uniform distribution | V6: 3 | W6: 0.04411764706 | X6: 1.704780905 | Y6: 10694 | Z6: 0.2870666667 | AA6: 14338.23529 | AK6: 0.9 | AL6: -1.281551566 | AM6: 1500 | AO6: 1 | AP6: 2 | AQ6: 500 | AR6: 1500 | AS6: 0.03333333333 | AT6: 0.1 | AU6: 1500
A7: 4 | B7: 1939 | C7: 8157 | V7: 4 | W7: 0.05882352941 | X7: 1.564726471 | Y7: 10192 | Z7: 0.3205333333 | AA7: 14117.64706 | AK7: 0.85 | AL7: -1.036433389 | AM7: 2250 | AO7: 2 | AP7: 3 | AQ7: 1500 | AR7: 2500 | AS7: 0.1 | AT7: 0.1666666667 | AU7: 2250
A8: 5 | B8: 1940 | C8: 3316 | F8: parameters are: | V8: 5 | W8: 0.07352941176 | X8: 1.449998909 | Y8: 9622 | Z8: 0.3585333333 | AA8: 13897.05882 | AK8: 0.8 | AL8: -0.8416212336 | AM8: 3000 | AO8: 3 | AP8: 4 | AQ8: 2500 | AR8: 3500 | AS8: 0.1666666667 | AT8: 0.2333333333 | AU8: 3000
A9: 6 | B9: 1941 | C9: 10192 | F9: min = | G9: 0 | H9: a | V9: 6 | W9: 0.08823529412 | X9: 1.35170224 | Y9: 9478 | Z9: 0.3681333333 | AA9: 13676.47059 | AK9: 0.75 | AL9: -0.6744897502 | AM9: 3750 | AO9: 4 | AP9: 5 | AQ9: 3500 | AR9: 4500 | AS9: 0.2333333333 | AT9: 0.3 | AU9: 3750
A10: 7 | B10: 1942 | C10: 3270 | F10: max = | G10: 15000 | H10: b | V10: 7 | W10: 0.1029411765 | X10: 1.264969245 | Y10: 8273 | Z10: 0.4484666667 | AA10: 13455.88235 | AK10: 0.7 | AL10: -0.5244005127 | AM10: 4500 | AO10: 5 | AP10: 6 | AQ10: 4500 | AR10: 5500 | AS10: 0.3 | AT10: 0.3666666667 | AU10: 4500
A11: 8 | B11: 1943 | C11: 12007 | V11: 8 | W11: 0.1176470588 | X11: 1.186831433 | Y11: 8157 | Z11: 0.4562 | AA11: 13235.29412 | AK11: 0.65 | AL11: -0.3853204664 | AM11: 5250 | AO11: 5 | AP11: 6 | AQ11: 4500 | AR11: 5500 | AS11: 0.3 | AT11: 0.3666666667 | AU11: 5250
A12: 9 | B12: 1944 | C12: 2441 | V12: 9 | W12: 0.1323529412 | X12: 1.115337358 | Y12: 7905 | Z12: 0.473 | AA12: 13014.70588 | AK12: 0.6 | AL12: -0.2533471031 | AM12: 6000 | AO12: 6 | AP12: 7 | AQ12: 5500 | AR12: 6500 | AS12: 0.3666666667 | AT12: 0.4333333333 | AU12: 6000
A13: 10 | B13: 1945 | C13: 5057 | V13: 10 | W13: 0.1470588235 | X13: 1.049131398 | Y13: 7391 | Z13: 0.5072666667 | AA13: 12794.11765 | AK13: 0.55 | AL13: -0.1256613469 | AM13: 6750 | AO13: 7 | AP13: 8 | AQ13: 6500 | AR13: 7500 | AS13: 0.4333333333 | AT13: 0.5 | AU13: 6750
A14: 11 | B14: 1946 | C14: 4461 | V14: 11 | W14: 0.1617647059 | X14: 0.987230992 | Y14: 7093 | Z14: 0.5271333333 | AA14: 12573.52941 | AK14: 0.5 | AL14: -2.504624782e-15 | AM14: 7500 | AO14: 7 | AP14: 8 | AQ14: 6500 | AR14: 7500 | AS14: 0.4333333333 | AT14: 0.5 | AU14: 7500
A15: 12 | B15: 1947 | C15: 5556 | E15: histogram | I15: Uniform Distribution PDF and CDF | V15: 12 | W15: 0.1764705882 | X15: 0.9288994916 | Y15: 6849 | Z15: 0.5434 | AA15: 12352.94118 | AK15: 0.45 | AL15: 0.1256613469 | AM15: 8250 | AO15: 8 | AP15: 9 | AQ15: 7500 | AR15: 8500 | AS15: 0.5 | AT15: 0.5666666667 | AU15: 8250
A16: 13 | B16: 1948 | C16: 3278 | E16: 0 | F16: frequency() | G16: rel freq. | H16: cum. freq | I16: index | J16: PDF | K16: CDF | V16: 13 | W16: 0.1911764706 | X16: 0.8735691346 | Y16: 6610 | Z16: 0.5593333333 | AA16: 12132.35294 | AK16: 0.4 | AL16: 0.2533471031 | AM16: 9000 | AO16: 9 | AP16: 10 | AQ16: 8500 | AR16: 9500 | AS16: 0.5666666667 | AT16: 0.6333333333 | AU16: 9000
A17: 14 | B17: 1949 | C17: 5281 | E17: 1000 | F17: =FREQUENCY(C4:C70,E17:E32) -> 3 | G17: =F17/SUM($F$17:$F$32) -> 0.0447761194 | H17: =G17 -> 0.0447761194 | I17: =AVERAGE(E16:E17) -> 500 | J17: =1/($G$10-$G$9)*1000 -> 0.06666666667 | K17: =IF(I17<$G$9,0,IF(I17>$G$10,1,(I17-$G$9)/($G$10-$G$9))) -> 0.03333333333 | V17: 14 | W17: 0.2058823529 | X17: 0.8207920883 | Y17: 5689 | Z17: 0.6207333333 | AA17: 11911.76471 | AK17: 0.35 | AL17: 0.3853204664 | AM17: 9750 | AO17: 10 | AP17: 11 | AQ17: 9500 | AR17: 10500 | AS17: 0.6333333333 | AT17: 0.7 | AU17: 9750
A18: 15 | B18: 1950 | C18: 3177 | E18: 2000 | F18: 9 | G18: =F18/SUM($F$17:$F$32) -> 0.1343283582 | H18: =H17+G18 -> 0.1791044776 | I18: =AVERAGE(E17:E18) -> 1500 | J18: 0.06666666667 | K18: =IF(I18<$G$9,0,IF(I18>$G$10,1,(I18-$G$9)/($G$10-$G$9))) -> 0.1 | V18: 15 | W18: 0.2205882353 | X18: 0.7702080819 | Y18: 5665 | Z18: 0.6223333333 | AA18: 11691.17647 | AK18: 0.3 | AL18: 0.5244005127 | AM18: 10500 | AO18: 10 | AP18: =IF(AO18<16,AO18+1,AO18) -> 11 | AQ18: 9500 | AR18: 10500 | AS18: 0.6333333333 | AT18: 0.7 | AU18: 10500
A19: 16 | B19: 1951 | C19: 3419 | E19: 3000 | F19: 15 | G19: 0.223880597 | H19: =H18+G19 -> 0.4029850746 | I19: =AVERAGE(E18:E19) -> 2500 | J19: 0.06666666667 | K19: 0.1666666667 | V19: 16 | W19: 0.2352941176 | X19: 0.721522284 | Y19: 5646 | Z19: 0.6236 | AA19: 11470.58824 | AK19: 0.25 | AL19: 0.6744897502 | AM19: 11250 | AO19: 11 | AP19: =IF(AO19<16,AO19+1,AO19) -> 12 | AQ19: 10500 | AR19: 11500 | AS19: 0.7 | AT19: 0.7666666667 | AU19: 11250
A20: 17 | B20: 1952 | C20: 746 | E20: 4000 | F20: 9 | G20: 0.1343283582 | H20: 0.5373134328 | I20: 3500 | J20: 0.06666666667 | K20: 0.2333333333 | V20: 17 | W20: 0.25 | X20: 0.6744897502 | Y20: 5632 | Z20: 0.6245333333 | AA20: 11250 | AK20: 0.2 | AL20: 0.8416212336 | AM20: 12000 | AO20: 12 | AP20: =IF(AO20<16,AO20+1,AO20) -> 13 | AQ20: 11500 | AR20: 12500 | AS20: 0.7666666667 | AT20: 0.8333333333 | AU20: 12000
A21: 18 | B21: 1953 | C21: 5632 | E21: 5000 | F21: 10 | G21: 0.1492537313 | H21: 0.6865671642 | I21: 4500 | J21: 0.06666666667 | K21: 0.3 | V21: 18 | W21: 0.2647058824 | X21: 0.6289042176 | Y21: 5556 | Z21: 0.6296 | AA21: 11029.41176 | AK21: 0.15 | AL21: 1.036433389 | AM21: 12750 | AO21: 13 | AP21: 14 | AQ21: 12500 | AR21: 13500 | AS21: 0.8333333333 | AT21: 0.9 | AU21: 12750
A22: 19 | B22: 1954 | C22: 1659 | E22: 6000 | F22: 8 | G22: 0.1194029851 | H22: 0.8059701493 | I22: 5500 | J22: 0.06666666667 | K22: 0.3666666667 | V22: 19 | W22: 0.2794117647 | X22: 0.5845898571 | Y22: 5299 | Z22: 0.6467333333 | AA22: 10808.82353 | AK22: 0.1 | AL22: 1.281551566 | AM22: 13500 | AO22: 13 | AP22: 14 | AQ22: 12500 | AR22: 13500 | AS22: 0.8333333333 | AT22: 0.9 | AU22: 13500
A23: 20 | B23: 1955 | C23: 4539 | E23: 7000 | F23: 2 | G23: 0.02985074627 | H23: 0.8358208955 | I23: 6500 | J23: 0.06666666667 | K23: 0.4333333333 | V23: 20 | W23: 0.2941176471 | X23: 0.5413950851 | Y23: 5281 | Z23: 0.6479333333 | AA23: 10588.23529 | AK23: 0.05 | AL23: 1.644853627 | AM23: 14250 | AO23: 14 | AP23: 15 | AQ23: 13500 | AR23: 14500 | AS23: 0.9 | AT23: 0.9666666667 | AU23: 14250
A24: 21 | B24: 1956 | C24: 2986 | E24: 8000 | F24: 3 | G24: 0.0447761194 | H24: 0.8805970149 | I24: 7500 | J24: 0.06666666667 | K24: 0.5 | V24: 21 | W24: 0.3088235294 | X24: 0.4991878421 | Y24: 5057 | Z24: 0.6628666667 | AA24: 10367.64706 | AK24: 0.02 | AL24: 2.053748911 | AM24: 14900 | AO24: 15 | AP24: 16 | AQ24: 14500 | AR24: 15500 | AS24: 0.9666666667 | AT24: 1 | AU24: 14900
A25: 22 | B25: 1957 | C25: 6849 | E25: 9000 | F25: 2 | G25: 0.02985074627 | H25: 0.9104477612 | I25: 8500 | J25: 0.06666666667 | K25: 0.5666666667 | V25: 22 | W25: 0.3235294118 | X25: 0.457851931 | Y25: 4700 | Z25: 0.6866666667 | AA25: 10147.05882 | AK25: 0.01 | AL25: 2.326347874 | AM25: 15200 | AO25: 15 | AP25: 16 | AQ25: 14500 | AR25: 15500 | AS25: 0.9666666667 | AT25: 1 | AU25: 15200
A26: 23 | B26: 1958 | C26: 1549 | E26: 10000 | F26: 2 | G26: 0.02985074627 | H26: 0.9402985075 | I26: 9500 | J26: 0.06666666667 | K26: 0.6333333333 | V26: 23 | W26: 0.3382352941 | X26: 0.4172841394 | Y26: 4539 | Z26: 0.6974 | AA26: 9926.470588
A27: 24 | B27: 1959 | C27: 4051 | E27: 11000 | F27: 2 | G27: 0.02985074627 | H27: 0.9701492537 | I27: 10500 | J27: 0.06666666667 | K27: 0.7 | V27: 24 | W27: 0.3529411765 | X27: 0.3773919438 | Y27: 4461 | Z27: 0.7026 | AA27: 9705.882353
A28: 25 | B28: 1960 | C28: 975 | E28: 12000 | F28: 0 | G28: 0 | H28: 0.9701492537 | I28: 11500 | J28: 0.06666666667 | K28: 0.7666666667 | V28: 25 | W28: 0.3676470588 | X28: 0.3380916568 | Y28: 4355 | Z28: 0.7096666667 | AA28: 9485.294118
A29: 26 | B29: 1961 | C29: 1260 | E29: 13000 | F29: 1 | G29: 0.01492537313 | H29: 0.9850746269 | I29: 12500 | J29: 0.06666666667 | K29: 0.8333333333 | V29: 26 | W29: 0.3823529412 | X29: 0.2993069105 | Y29: 4294 | Z29: 0.7137333333 | AA29: 9264.705882
A30: 27 | B30: 1962 | C30: 4355 | E30: 14000 | F30: 0 | G30: 0 | H30: 0.9850746269 | I30: 13500 | J30: 0.06666666667 | K30: 0.9 | V30: 27 | W30: 0.3970588235 | X30: 0.2609674004 | Y30: 4214 | Z30: 0.7190666667 | AA30: 9044.117647
A31: 28 | B31: 1963 | C31: 9622 | E31: 15000 | F31: 1 | G31: 0.01492537313 | H31: 1 | I31: 14500 | J31: 0.06666666667 | K31: 0.9666666667 | V31: 28 | W31: 0.4117647059 | X31: 0.2230078309 | Y31: 4182 | Z31: 0.7212 | AA31: 8823.529412
A32: 29 | B32: 1964 | C32: 5299 | E32: 16000 | F32: 0 | G32: 0 | H32: 1 | I32: 15500 | J32: 0.06666666667 | K32: 1 | V32: 29 | W32: 0.4264705882 | X32: 0.1853670173 | Y32: 4145 | Z32: 0.7236666667 | AA32: 8602.941176 | AL32: 1e-05 | AM32: 100000
A33: 30 | B33: 1965 | C33: 7093 | V33: 30 | W33: 0.4411764706 | X33: 0.1479871097 | Y33: 4051 | Z33: 0.7299333333 | AA33: 8382.352941 | AK33: 0.95 | AL33: =NORMSINV(1-AK33) -> -1.644853627 | AM33: =AL33 -> -1.644853627 | AN33: 0 | AO33: 100
A34: 31 | B34: 1966 | C34: 14367 | V34: 31 | W34: 0.4558823529 | X34: 0.1108129123 | Y34: 4043 | Z34: 0.7304666667 | AA34: 8161.764706 | AK34: 0.9 | AL34: =NORMSINV(1-AK34) -> -1.281551566 | AM34: =AL34 -> -1.281551566 | AN34: 0 | AO34: 100
A35: 32 | B35: 1967 | C35: 2626 | V35: 32 | W35: 0.4705882353 | X35: 0.07379127381 | Y35: 3914 | Z35: 0.7390666667 | AA35: 7941.176471 | AK35: 0.75 | AL35: -0.6744897502 | AM35: -0.6744897502 | AN35: 0 | AO35: 100
A36: 33 | B36: 1968 | C36: 1898 | V36: 33 | W36: 0.4852941176 | X36: 0.03687053266 | Y36: 3552 | Z36: 0.7632 | AA36: 7720.588235 | AK36: 0.5 | AL36: 0 | AM36: 0 | AN36: 0 | AO36: 100
A37: 34 | B37: 1969 | C37: 8273 | V37: 34 | W37: 0.5 | X37: 0 | Y37: 3419 | Z37: 0.7720666667 | AA37: 7500 | AK37: 0.25 | AL37: 0.6744897502 | AM37: 0.6744897502 | AN37: 0 | AO37: 100
A38: 35 | B38: 1970 | C38: 5646 | V38: 35 | W38: 0.5147058824 | X38: -0.03687053266 | Y38: 3354 | Z38: 0.7764 | AA38: 7279.411765 | AK38: 0.1 | AL38: 1.281551566 | AM38: 1.281551566 | AN38: 0 | AO38: 100
A39: 36 | B39: 1971 | C39: 3552 | V39: 36 | W39: 0.5294117647 | X39: -0.07379127381 | Y39: 3316 | Z39: 0.7789333333 | AA39: 7058.823529 | AK39: 0.05 | AL39: 1.644853627 | AM39: 1.644853627 | AN39: 0 | AO39: 100
A40: 37 | B40: 1972 | C40: 2041 | V40: 37 | W40: 0.5441176471 | X40: -0.1108129123 | Y40: 3278 | Z40: 0.7814666667 | AA40: 6838.235294 | AK40: 0.02 | AL40: 2.053748911 | AM40: 2.053748911 | AN40: 0 | AO40: 100
A41: 38 | B41: 1973 | C41: 2700 | V41: 38 | W41: 0.5588235294 | X41: -0.1479871097 | Y41: 3270 | Z41: 0.782 | AA41: 6617.647059 | AK41: 0.01 | AL41: 2.326347874 | AM41: 2.326347874 | AN41: 0 | AO41: 100
A42: 39 | B42: 1974 | C42: 1545 | V42: 39 | W42: 0.5735294118 | X42: -0.1853670173 | Y42: 3177 | Z42: 0.7882 | AA42: 6397.058824
A43: 40 | B43: 1975 | C43: 2064 | V43: 40 | W43: 0.5882352941 | X43: -0.2230078309 | Y43: 3165 | Z43: 0.789 | AA43: 6176.470588
A44: 41 | B44: 1976 | C44: 1851 | V44: 41 | W44: 0.6029411765 | X44: -0.2609674004 | Y44: 2986 | Z44: 0.8009333333 | AA44: 5955.882353
A45: 42 | B45: 1977 | C45: 6610 | V45: 42 | W45: 0.6176470588 | X45: -0.2993069105 | Y45: 2864 | Z45: 0.8090666667 | AA45: 5735.294118
A46: 43 | B46: 1978 | C46: 1211 | V46: 43 | W46: 0.6323529412 | X46: -0.3380916568 | Y46: 2845 | Z46: 0.8103333333 | AA46: 5514.705882
A47: 44 | B47: 1979 | C47: 2712 | V47: 44 | W47: 0.6470588235 | X47: -0.3773919438 | Y47: 2828 | Z47: 0.8114666667 | AA47: 5294.117647
A48: 45 | B48: 1980 | C48: 2828 | V48: 45 | W48: 0.6617647059 | X48: -0.4172841394 | Y48: 2755 | Z48: 0.8163333333 | AA48: 5073.529412
A49: 46 | B49: 1981 | C49: 3914 | V49: 46 | W49: 0.6764705882 | X49: -0.457851931 | Y49: 2712 | Z49: 0.8192 | AA49: 4852.941176
A50: 47 | B50: 1982 | C50: 10694 | V50: 47 | W50: 0.6911764706 | X50: -0.4991878421 | Y50: 2700 | Z50: 0.82 | AA50: 4632.352941
A51: 48 | B51: 1983 | C51: 2864 | V51: 48 | W51: 0.7058823529 | X51: -0.5413950851 | Y51: 2629 | Z51: 0.8247333333 | AA51: 4411.764706
A52: 49 | B52: 1984 | C52: 2021 | V52: 49 | W52: 0.7205882353 | X52: -0.5845898571 | Y52: 2626 | Z52: 0.8249333333 | AA52: 4191.176471
A53: 50 | B53: 1985 | C53: 9478 | V53: 50 | W53: 0.7352941176 | X53: -0.6289042176 | Y53: 2488 | Z53: 0.8341333333 | AA53: 3970.588235
A54: 51 | B54: 1986 | C54: 1556 | V54: 51 | W54: 0.75 | X54: -0.6744897502 | Y54: 2441 | Z54: 0.8372666667 | AA54: 3750
A55: 52 | B55: 1987 | C55: 3354 | V55: 52 | W55: 0.7647058824 | X55: -0.721522284 | Y55: 2220 | Z55: 0.852 | AA55: 3529.411765
A56: 53 | B56: 1988 | C56: 2488 | V56: 53 | W56: 0.7794117647 | X56: -0.7702080819 | Y56: 2064 | Z56: 0.8624 | AA56: 3308.823529
A57: 54 | B57: 1989 | C57: 4700 | V57: 54 | W57: 0.7941176471 | X57: -0.8207920883 | Y57: 2041 | Z57: 0.8639333333 | AA57: 3088.235294
A58: 55 | B58: 1990 | C58: 7905 | V58: 55 | W58: 0.8088235294 | X58: -0.8735691346 | Y58: 2021 | Z58: 0.8652666667 | AA58: 2867.647059
A59: 56 | B59: 1991 | C59: 4145 | V59: 56 | W59: 0.8235294118 | X59: -0.9288994916 | Y59: 1908 | Z59: 0.8728 | AA59: 2647.058824
A60: 57 | B60: 1992 | C60: 5665 | V60: 57 | W60: 0.8382352941 | X60: -0.987230992 | Y60: 1898 | Z60: 0.8734666667 | AA60: 2426.470588
A61: 58 | B61: 1993 | C61: 3165 | V61: 58 | W61: 0.8529411765 | X61: -1.049131398 | Y61: 1851 | Z61: 0.8766 | AA61: 2205.882353
A62: 59 | B62: 1994 | C62: 4043 | V62: 59 | W62: 0.8676470588 | X62: -1.115337358 | Y62: 1659 | Z62: 0.8894 | AA62: 1985.294118
A63: 60 | B63: 1995 | C63: 7391 | V63: 60 | W63: 0.8823529412 | X63: -1.186831433 | Y63: 1556 | Z63: 0.8962666667 | AA63: 1764.705882
A64: 61 | B64: 1996 | C64: 1908 | V64: 61 | W64: 0.8970588235 | X64: -1.264969245 | Y64: 1549 | Z64: 0.8967333333 | AA64: 1544.117647
A65: 62 | B65: 1997 | C65: 4182 | V65: 62 | W65: 0.9117647059 | X65: -1.35170224 | Y65: 1545 | Z65: 0.897 | AA65: 1323.529412
A66: 63 | B66: 1998 | C66: 2845 | V66: 63 | W66: 0.9264705882 | X66: -1.449998909 | Y66: 1260 | Z66: 0.916 | AA66: 1102.941176
A67: 64 | B67: 1999 | C67: 2220 | V67: 64 | W67: 0.9411764706 | X67: -1.564726471 | Y67: 1211 | Z67: 0.9192666667 | AA67: 882.3529412
A68: 65 | B68: 2000 | C68: 5689 | V68: 65 | W68: 0.9558823529 | X68: -1.704780905 | Y68: 992 | Z68: =1-(Y68-$G$9)/($G$10-$G$9) -> 0.9338666667 | AA68: =$G$9+($G$10-$G$9)*(1-W68) -> 661.7647059
A69: 66 | B69: 2001 | C69: 4214 | V69: 66 | W69: =V69/($V$70+1) -> 0.9705882353 | X69: =NORMSINV(1-W69) -> -1.88950996 | Y69: =LARGE($C$4:$C$70,V69) -> 975 | Z69: 0.935 | AA69: 441.1764706
A70: 67 | B70: 2002 | C70: 2755 | V70: 67 | W70: 0.9852941176 | X70: -2.177923069 | Y70: 746 | Z70: 0.9502666667 | AA70: 220.5882353

Sheet Triangular
A1: Fitting a probability distribution to data | W1: Weibull | Z1: =CORREL(Z4:Z70,W4:W70) -> 0.9665885888 | AO1: interpolation | AQ1: A | AR1: B | AS1: C | AT1: E
C2: annual | W2: plotting | X2: deviate of | Y2: ranked | Z2: triangular distribution | AQ2: first | AS2: second
B3: year | C3: peak flow | W3: position | X3: plot pos | Y3: flows | Z3: p | AA3: quantile | AK3: exc prob | AL3: dev | AM3: CDF | AO3: lower | AP3: upper | AQ3: lower | AR3: upper | AS3: lower | AT3: upper | AU3: interp
A4: 1 | B4: 1936 | C4: 4294 | V4: 1 | W4: =V4/($V$70+1) -> 0.01470588235 | X4: =NORMSINV(1-W4) -> 2.177923069 | Y4: =LARGE($C$4:$C$70,V4) -> 14367 | Z4: =1-IF(Y4<=$G$10,(Y4-$G$9)^2/($G$11-$G$9)/($G$10-$G$9),1-($G$11-Y4)^2/($G$11-$G$9)/($G$11-$G$10)) -> 0.002137008 | AA4: =IF((1-W4)<$AK$1,$G$9+SQRT((1-W4)*($G$11-$G$9)*($G$10-$G$9)),$G$11-SQRT(W4*($G$11-$G$9)*($G$11-$G$10))) -> 13339.47209 | AK4: 0.98 | AL4: =NORMSINV(1-AK4) -> -2.053748911 | AM4: =AU4 -> 750 | AO4: =MATCH(1-AK4,$K$17:$K$32,1) -> 1 | AP4: =IF(AO4<16,AO4+1,AO4) -> 2 | AQ4: =IF(AO4<>AP4,INDEX($I$17:$I$32,AO4),INDEX($I$17:$I$32,AO4-1)) -> 500 | AR4: =INDEX($I$17:$I$32,AP4) -> 1500 | AS4: =IF(AO4<>AP4,INDEX($K$17:$K$32,AO4),INDEX($K$17:$K$32,AO4-1)) -> 0.006666666667 | AT4: =INDEX($K$17:$K$32,AP4) -> 0.06 | AU4: =AQ4+(AR4-AQ4)*(1-AK4-AS4)/(AT4-AS4) -> 750
A5: 2 | B5: 1937 | C5: 992 | V5: 2 | W5: =V5/($V$70+1) -> 0.02941176471 | X5: =NORMSINV(1-W5) -> 1.88950996 | Y5: =LARGE($C$4:$C$70,V5) -> 12007 | Z5: =1-IF(Y5<=$G$10,(Y5-$G$9)^2/($G$11-$G$9)/($G$10-$G$9),1-($G$11-Y5)^2/($G$11-$G$9)/($G$11-$G$10)) -> 0.04777626133 | AA5: 12651.65891 | AK5: 0.95 | AL5: -1.644853627 | AM5: =AU5 -> 1312.5 | AO5: =MATCH(1-AK5,$K$17:$K$32,1) -> 1 | AP5: 2 | AQ5: =IF(AO5<>AP5,INDEX($I$17:$I$32,AO5),INDEX($I$17:$I$32,AO5-1)) -> 500 | AR5: =INDEX($I$17:$I$32,AP5) -> 1500 | AS5: =IF(AO5<>AP5,INDEX($K$17:$K$32,AO5),INDEX($K$17:$K$32,AO5-1)) -> 0.006666666667 | AT5: =INDEX($K$17:$K$32,AP5) -> 0.06 | AU5: =AQ5+(AR5-AQ5)*(1-AK5-AS5)/(AT5-AS5) -> 1312.5
A6: 3 | B6: 1938 | C6: 2629 | F6: fit a triangular distribution | V6: 3 | W6: 0.04411764706 | X6: 1.704780905 | Y6: 10694 | Z6: 0.09888872533 | AA6: 12123.88129 | AK6: 0.9 | AL6: -1.281551566 | AM6: 1875 | AO6: 2 | AP6: 3 | AQ6: 1500 | AR6: 2500 | AS6: 0.06 | AT6: 0.1666666667 | AU6: 1875
A7: 4 | B7: 1939 | C7: 8157 | V7: 4 | W7: 0.05882352941 | X7: 1.564726471 | Y7: 10192 | Z7: 0.1232899413 | AA7: 11678.94418 | AK7: 0.85 | AL7: -1.036433389 | AM7: 2343.75 | AO7: 2 | AP7: 3 | AQ7: 1500 | AR7: 2500 | AS7: 0.06 | AT7: 0.1666666667 | AU7: 2343.75
A8: 5 | B8: 1940 | C8: 3316 | F8: parameters are: | V8: 5 | W8: 0.07352941176 | X8: 1.449998909 | Y8: 9622 | Z8: 0.1542553813 | AA8: 11286.94671 | AK8: 0.8 | AL8: -0.8416212336 | AM8: 2760.416667 | AO8: 3 | AP8: 4 | AQ8: 2500 | AR8: 3500 | AS8: 0.1666666667 | AT8: 0.2946666667 | AU8: 2760.416667
A9: 6 | B9: 1941 | C9: 10192 | F9: min = | G9: 0 | H9: a | V9: 6 | W9: 0.08823529412 | X9: 1.35170224 | Y9: 9478 | Z9: 0.1626265813 | AA9: 10932.55392 | AK9: 0.75 | AL9: -0.6744897502 | AM9: 3151.041667 | AO9: 3 | AP9: 4 | AQ9: 2500 | AR9: 3500 | AS9: 0.1666666667 | AT9: 0.2946666667 | AU9: 3151.041667
A10: 7 | B10: 1942 | C10: 3270 | F10: mode = | G10: 2500 | H10: c | V10: 7 | W10: 0.1029411765 | X10: 1.264969245 | Y10: 8273 | Z10: 0.2413468213 | AA10: 10606.6561 | AK10: 0.7 | AL10: -0.5244005127 | AM10: 3545.454545 | AO10: 4 | AP10: 5 | AQ10: 3500 | AR10: 4500 | AS10: 0.2946666667 | AT10: 0.412 | AU10: 3545.454545
A11: 8 | B11: 1943 | C11: 12007 | F11: max = | G11: 15000 | H11: b | V11: 8 | W11: 0.1176470588 | X11: 1.186831433 | Y11: 8157 | Z11: 0.249742128 | AA11: 10303.31782 | AK11: 0.65 | AL11: -0.3853204664 | AM11: 3971.590909 | AO11: 4 | AP11: 5 | AQ11: 3500 | AR11: 4500 | AS11: 0.2946666667 | AT11: 0.412 | AU11: 3971.590909
A12: 9 | B12: 1944 | C12: 2441 | V12: 9 | W12: 0.1323529412 | X12: 1.115337358 | Y12: 7905 | Z12: 0.2684748 | AA12: 10018.41627 | AK12: 0.6 | AL12: -0.2533471031 | AM12: 4397.727273 | AO12: 4 | AP12: 5 | AQ12: 3500 | AR12: 4500 | AS12: 0.2946666667 | AT12: 0.412 | AU12: 4397.727273
A13: 10 | B13: 1945 | C13: 5057 | V13: 10 | W13: 0.1470588235 | X13: 1.049131398 | Y13: 7391 | Z13: 0.3087833653 | AA13: 9748.949685 | AK13: 0.55 | AL13: -0.1256613469 | AM13: 4856.25 | AO13: 5 | AP13: 6 | AQ13: 4500 | AR13: 5500 | AS13: 0.412 | AT13: 0.5186666667 | AU13: 4856.25
A14: 11 | B14: 1946 | C14: 4461 | V14: 11 | W14: 0.1617647059 | X14: 0.987230992 | Y14: 7093 | Z14: 0.3334434613 | AA14: 9492.651967 | AK14: 0.5 | AL14: -2.504624782e-15 | AM14: 5325 | AO14: 5 | AP14: 6 | AQ14: 4500 | AR14: 5500 | AS14: 0.412 | AT14: 0.5186666667 | AU14: 5325
A15: 12 | B15: 1947 | C15: 5556 | E15: histogram | I15: Triangular Distribution PDF and CDF | V15: 12 | W15: 0.1764705882 | X15: 0.9288994916 | Y15: 6849 | Z15: 0.354340272 | AA15: 9247.762584 | AK15: 0.45 | AL15: 0.1256613469 | AM15: 5826.388889 | AO15: 6 | AP15: 7 | AQ15: 5500 | AR15: 6500 | AS15: 0.5186666667 | AT15: 0.6146666667 | AU15: 5826.388889
A16: 13 | B16: 1948 | C16: 3278 | E16: 0 | F16: frequency() | G16: rel freq. | H16: cum. freq | I16: index | J16: PDF | K16: CDF | V16: 13 | W16: 0.1911764706 | X16: 0.8735691346 | Y16: 6610 | Z16: 0.3754245333 | AA16: 9012.881475 | AK16: 0.4 | AL16: 0.2533471031 | AM16: 6347.222222 | AO16: 6 | AP16: 7 | AQ16: 5500 | AR16: 6500 | AS16: 0.5186666667 | AT16: 0.6146666667 | AU16: 6347.222222
A17: 14 | B17: 1949 | C17: 5281 | E17: 1000 | F17: =FREQUENCY(C4:C70,E17:E32) -> 3 | G17: =F17/SUM($F$17:$F$32) -> 0.0447761194 | H17: =G17 -> 0.0447761194 | I17: =AVERAGE(E16:E17) -> 500 | J17: =IF(I17<=$G$10,2*(I17-$G$9)/($G$11-$G$9)/($G$10-$G$9),2*($G$11-I17)/($G$11-$G$9)/($G$11-$G$10))*1000 -> 0.02666666667 | K17: =IF(I17<=$G$10,(I17-$G$9)^2/($G$11-$G$9)/($G$10-$G$9),1-($G$11-I17)^2/($G$11-$G$9)/($G$11-$G$10)) -> 0.006666666667 | V17: 14 | W17: 0.2058823529 | X17: 0.8207920883 | Y17: 5689 | Z17: 0.4623718453 | AA17: 8786.873478 | AK17: 0.35 | AL17: 0.3853204664 | AM17: 6914.0625 | AO17: 7 | AP17: 8 | AQ17: 6500 | AR17: 7500 | AS17: 0.6146666667 | AT17: 0.7 | AU17: 6914.0625
A18: 15 | B18: 1950 | C18: 3177 | E18: 2000 | F18: 9 | G18: =F18/SUM($F$17:$F$32) -> 0.1343283582 | H18: =H17+G18 -> 0.1791044776 | I18: =AVERAGE(E17:E18) -> 1500 | J18: =IF(I18<=$G$10,2*(I18-$G$9)/($G$11-$G$9)/($G$10-$G$9),2*($G$11-I18)/($G$11-$G$9)/($G$11-$G$10))*1000 -> 0.08 | K18: =IF(I18<=$G$10,(I18-$G$9)^2/($G$11-$G$9)/($G$10-$G$9),1-($G$11-I18)^2/($G$11-$G$9)/($G$11-$G$10)) -> 0.06 | V18: 15 | W18: 0.2205882353 | X18: 0.7702080819 | Y18: 5665 | Z18: 0.4647585333 | AA18: 8568.803057 | AK18: 0.3 | AL18: 0.5244005127 | AM18: 7500 | AO18: 7 | AP18: =IF(AO18<16,AO18+1,AO18) -> 8 | AQ18: 6500 | AR18: 7500 | AS18: 0.6146666667 | AT18: 0.7 | AU18: 7500
A19: 16 | B19: 1951 | C19: 3419 | E19: 3000 | F19: 15 | G19: 0.223880597 | H19: =H18+G19 -> 0.4029850746 | I19: =AVERAGE(E18:E19) -> 2500 | J19: =IF(I19<=$G$10,2*(I19-$G$9)/($G$11-$G$9)/($G$10-$G$9),2*($G$11-I19)/($G$11-$G$9)/($G$11-$G$10))*1000 -> 0.1333333333 | K19: =IF(I19<=$G$10,(I19-$G$9)^2/($G$11-$G$9)/($G$10-$G$9),1-($G$11-I19)^2/($G$11-$G$9)/($G$11-$G$10)) -> 0.1666666667 | V19: 16 | W19: 0.2352941176 | X19: 0.721522284 | Y19: 5646 | Z19: 0.466652352 | AA19: 8357.888358 | AK19: 0.25 | AL19: 0.6744897502 | AM19: 8169.642857 | AO19: 8 | AP19: =IF(AO19<16,AO19+1,AO19) -> 9 | AQ19: 7500 | AR19: 8500 | AS19: 0.7 | AT19: 0.7746666667 | AU19: 8169.642857
A20: 17 | B20: 1952 | C20: 746 | E20: 4000 | F20: 9 | G20: 0.1343283582 | H20: 0.5373134328 | I20: 3500 | J20: 0.1226666667 | K20: 0.2946666667 | V20: 17 | W20: 0.25 | X20: 0.6744897502 | Y20: 5632 | Z20: 0.4680502613 | AA20: 8153.468031 | AK20: 0.2 | AL20: 0.8416212336 | AM20: 8895.833333 | AO20: =MATCH(1-AK20,$K$17:$K$32,1) -> 9 | AP20: =IF(AO20<16,AO20+1,AO20) -> 10 | AQ20: 8500 | AR20: 9500 | AS20: 0.7746666667 | AT20: 0.8386666667 | AU20: 8895.833333
A21: 18 | B21: 1953 | C21: 5632 | E21: 5000 | F21: 10 | G21: 0.1492537313 | H21: 0.6865671642 | I21: 4500 | J21: 0.112 | K21: 0.412 | V21: 18 | W21: 0.2647058824 | X21: 0.6289042176 | Y21: 5556 | Z21: 0.475675392 | AA21: 7954.976725 | AK21: 0.15 | AL21: 1.036433389 | AM21: 9712.5 | AO21: 10 | AP21: 11 | AQ21: 9500 | AR21: 10500 | AS21: 0.8386666667 | AT21: 0.892 | AU21: 9712.5
A22: 19 | B22: 1954 | C22: 1659 | E22: 6000 | F22: 8 | G22: 0.1194029851 | H22: 0.8059701493 | I22: 5500 | J22: 0.1013333333 | K22: 0.5186666667 | V22: 19 | W22: 0.2794117647 | X22: 0.5845898571 | Y22: 5299 | Z22: 0.5019168053 | AA22: 7761.926646 | AK22: 0.1 | AL22: 1.281551566 | AM22: 10687.5 | AO22: 11 | AP22: 12 | AQ22: 10500 | AR22: 11500 | AS22: 0.892 | AT22: 0.9346666667 | AU22: 10687.5
A23: 20 | B23: 1955 | C23: 4539 | E23: 7000 | F23: 2 | G23: 0.02985074627 | H23: 0.8358208955 | I23: 6500 | J23: 0.09066666667 | K23: 0.6146666667 | V23: 20 | W23: 0.2941176471 | X23: 0.5413950851 | Y23: 5281 | Z23: 0.5037811253 | AA23: 7573.893428 | AK23: 0.05 | AL23: 1.644853627 | AM23: 11979.16667 | AO23: 12 | AP23: 13 | AQ23: 11500 | AR23: 12500 | AS23: 0.9346666667 | AT23: 0.9666666667 | AU23: 11979.16667
A24: 21 | B24: 1956 | C24: 2986 | E24: 8000 | F24: 3 | G24: 0.0447761194 | H24: 0.8805970149 | I24: 7500 | J24: 0.08 | K24: 0.7 | V24: 21 | W24: 0.3088235294 | X24: 0.4991878421 | Y24: 5057 | Z24: 0.5272706613 | AA24: 7390.505157 | AK24: 0.02 | AL24: 2.053748911 | AM24: 13125 | AO24: 13 | AP24: 14 | AQ24: 12500 | AR24: 13500 | AS24: 0.9666666667 | AT24: 0.988 | AU24: 13125
A25: 22 | B25: 1957 | C25: 6849 | E25: 9000 | F25: 2 | G25: 0.02985074627 | H25: 0.9104477612 | I25: 8500 | J25: 0.06933333333 | K25: 0.7746666667 | V25: 22 | W25: 0.3235294118 | X25: 0.457851931 | Y25: 4700 | Z25: 0.5658133333 | AA25: 7211.433719 | AK25: 0.01 | AL25: 2.326347874 | AM25: 13687.5 | AO25: 14 | AP25: 15 | AQ25: 13500 | AR25: 14500 | AS25: 0.988 | AT25: 0.9986666667 | AU25: 13687.5
A26: 23 | B26: 1958 | C26: 1549 | E26: 10000 | F26: 2 | G26: 0.02985074627 | H26: 0.9402985075 | I26: 9500 | J26: 0.05866666667 | K26: 0.8386666667 | V26: 23 | W26: 0.3382352941 | X26: 0.4172841394 | Y26: 4539 | Z26: 0.583640112 | AA26: 7036.387902
A27: 24 | B27: 1959 | C27: 4051 | E27: 11000 | F27: 2 | G27: 0.02985074627 | H27: 0.9701492537 | I27: 10500 | J27: 0.048 | K27: 0.892 | V27: 24 | W27: 0.3529411765 | X27: 0.3773919438 | Y27: 4461 | Z27: 0.592376112 | AA27: 6865.107832
A28: 25 | B28: 1960 | C28: 975 | E28: 12000 | F28: 0 | G28: 0 | H28: 0.9701492537 | I28: 11500 | J28: 0.03733333333 | K28: 0.9346666667 | V28: 25 | W28: 0.3676470588 | X28: 0.3380916568 | Y28: 4355 | Z28: 0.6043521333 | AA28: 6697.360448
A29: 26 | B29: 1961 | C29: 1260 | E29: 13000 | F29: 1 | G29: 0.01492537313 | H29: 0.9850746269 | I29: 12500 | J29: 0.02666666667 | K29: 0.9666666667 | V29: 26 | W29: 0.3823529412 | X29: 0.2993069105 | Y29: 4294 | Z29: 0.6112983253 | AA29: 6532.935782
A30: 27 | B30: 1962 | C30: 4355 | E30: 14000 | F30: 0 | G30: 0 | H30: 0.9850746269 | I30: 13500 | J30: 0.016 | K30: 0.988 | V30: 27 | W30: 0.3970588235 | X30: 0.2609674004 | Y30: 4214 | Z30: 0.6204682453 | AA30: 6371.643875
A31: 28 | B31: 1963 | C31: 9622 | E31: 15000 | F31: 1 | G31: 0.01492537313 | H31: 1 | I31: 14500 | J31: 0.005333333333 | K31: 0.9986666667 | V31: 28 | W31: 0.4117647059 | X31: 0.2230078309 | Y31: 4182 | Z31: 0.624155328 | AA31: 6213.312208
A32: 29 | B32: 1964 | C32: 5299 | E32: 16000 | F32: 0 | G32: 0 | H32: 1 | I32: 15500 | J32: -0.005333333333 | K32: 0.9986666667 | V32: 29 | W32: 0.4264705882 | X32: 0.1853670173 | Y32: 4145 | Z32: 0.6284321333 | AA32: 6057.783536
A33: 30 | B33: 1965 | C33: 7093 | V33: 30 | W33: 0.4411764706 | X33: 0.1479871097 | Y33: 4051 | Z33: 0.6393632053 | AA33: 5904.914061 | AU33: 0 | AV33: 16000
A34: 31 | B34: 1966 | C34: 14367 | V34: 31 | W34: 0.4558823529 | X34: 0.1108129123 | Y34: 4043 | Z34: 0.6402978613 | AA34: 5754.571877 | AT34: 0.95 | AU34: =NORMSINV(1-AT34) -> -1.644853627 | AV34: =AU34 -> -1.644853627 | AW34: 0
A35: 32 | B35: 1967 | C35: 2626 | V35: 32 | W35: 0.4705882353 | X35: 0.07379127381 | Y35: 3914 | Z35: 0.6554634453 | AA35: 5606.635634 | AT35: 0.9 | AU35: =NORMSINV(1-AT35) -> -1.281551566 | AV35: =AU35 -> -1.281551566 | AW35: 0
A36: 33 | B36: 1968 | C36: 1898 | V36: 33 | W36: 0.4852941176 | X36: 0.03687053266 | Y36: 3552 | Z36: 0.698969088 | AA36: 5460.993392 | AT36: 0.75 | AU36: -0.6744897502 | AV36: -0.6744897502 | AW36: 0
A37: 34 | B37: 1969 | C37: 8273 | V37: 34 | W37: 0.5 | X37: 0 | Y37: 3419 | Z37: 0.7153043253 | AA37: 5317.541634 | AT37: 0.5 | AU37: 0 | AV37: 0 | AW37: 0
A38: 35 | B38: 1970 | C38: 5646 | V38: 35 | W38: 0.5147058824 | X38: -0.03687053266 | Y38: 3354 | Z38: 0.723356352 | AA38: 5176.1844 | AT38: 0.25 | AU38: 0.6744897502 | AV38: 0.6744897502 | AW38: 0
A39: 36 | B39: 1971 | C39: 3552 | V39: 36 | W39: 0.5294117647 | X39: -0.07379127381 | Y39: 3316 | Z39: 0.7280845653 | AA39: 5036.832538 | AT39: 0.1 | AU39: 1.281551566 | AV39: 1.281551566 | AW39: 0
A40: 37 | B40: 1972 | C40: 2041 | V40: 37 | W40: 0.5441176471 | X40: -0.1108129123 | Y40: 3278 | Z40: 0.7328281813 | AA40: 4899.403046 | AT40: 0.05 | AU40: 1.644853627 | AV40: 1.644853627 | AW40: 0
A41: 38 | B41: 1973 | C41: 2700 | V41: 38 | W41: 0.5588235294 | X41: -0.1479871097 | Y41: 3270 | Z41: 0.7338288 | AA41: 4763.818497 | AT41: 0.02 | AU41: 2.053748911 | AV41: 2.053748911 | AW41: 0
A42: 39 | B42: 1974 | C42: 1545 | V42: 39 | W42: 0.5735294118 | X42: -0.1853670173 | Y42: 3177 | Z42: 0.745511088 | AA42: 4630.006523 | AT42: 0.01 | AU42: 2.326347874 | AV42: 2.326347874 | AW42: 0
A43: 40 | B43: 1975 | C43: 2064 | V43: 40 | W43: 0.5882352941 | X43: -0.2230078309 | Y43: 3165 | Z43: 0.7470252 | AA43: 4497.89937
A44: 41 | B44: 1976 | C44: 1851 | V44: 41 | W44: 0.6029411765 | X44: -0.2609674004 | Y44: 2986 | Z44: 0.7697930453 | AA44: 4367.43349
A45: 42 | B45: 1977 | C45: 6610 | V45: 42 | W45: 0.6176470588 | X45: -0.2993069105 | Y45: 2864 | Z45: 0.7855066453 | AA45: 4238.54919
A46: 43 | B46: 1978 | C46: 1211 | V46: 43 | W46: 0.6323529412 | X46: -0.3380916568 | Y46: 2845 | Z46: 0.7879681333 | AA46: 4111.19031
A47: 44 | B47: 1979 | C47: 2712 | V47: 44 | W47: 0.6470588235 | X47: -0.3773919438 | Y47: 2828 | Z47: 0.7901737813 | AA47: 3985.303935
A48: 45 | B48: 1980 | C48: 2828 | V48: 45 | W48: 0.6617647059 | X48: -0.4172841394 | Y48: 2755 | Z48: 0.7996801333 | AA48: 3860.840142
A49: 46 | B49: 1981 | C49: 3914 | V49: 46 | W49: 0.6764705882 | X49: -0.457851931 | Y49: 2712 | Z49: 0.805306368 | AA49: 3737.751766
A50: 47 | B50: 1982 | C50: 10694 | V50: 47 | W50: 0.6911764706 | X50: -0.4991878421 | Y50: 2700 | Z50: 0.80688 | AA50: 3615.994192
A51: 48 | B51: 1983 | C51: 2864 | V51: 48 | W51: 0.7058823529 | X51: -0.5413950851 | Y51: 2629 | Z51: 0.8162220853 | AA51: 3495.525167
A52: 49 | B52: 1984 | C52: 2021 | V52: 49 | W52: 0.7205882353 | X52: -0.5845898571 | Y52: 2626 | Z52: 0.8166180053 | AA52: 3376.304627
A53: 50 | B53: 1985 | C53: 9478 | V53: 50 | W53: 0.7352941176 | X53: -0.6289042176 | Y53: 2488 | Z53: 0.8349294933 | AA53: 3258.294542
A54: 51 | B54: 1986 | C54: 1556 | V54: 51 | W54: 0.75 | X54: -0.6744897502 | Y54: 2441 | Z54: 0.8411071733 | AA54: 3141.458774
A55: 52 | B55: 1987 | C55: 3354 | V55: 52 | W55: 0.7647058824 | X55: -0.721522284 | Y55: 2220 | Z55: 0.868576 | AA55: 3025.76295
A56: 53 | B56: 1988 | C56: 2488 | V56: 53 | W56: 0.7794117647 | X56: -0.7702080819 | Y56: 2064 | Z56: 0.88639744 | AA56: 2911.174338
A57: 54 | B57: 1989 | C57: 4700 | V57: 54 | W57: 0.7941176471 | X57: -0.8207920883 | Y57: 2041 | Z57: 0.8889151733 | AA57: 2797.661748
A58: 55 | B58: 1990 | C58: 7905 | V58: 55 | W58: 0.8088235294 | X58: -0.8735691346 | Y58: 2021 | Z58: 0.8910815733 | AA58: 2685.195423
A59: 56 | B59: 1991 | C59: 4145 | V59: 56 | W59: 0.8235294118 | X59: -0.9288994916 | Y59: 1908 | Z59: 0.90292096 | AA59: 2573.746956
A60: 57 | B60: 1992 | C60: 5665 | V60: 57 | W60: 0.8382352941 | X60: -0.987230992 | Y60: 1898 | Z60: 0.9039358933 | AA60: 2463.289201
A61: 58 | B61: 1993 | C61: 3165 | V61: 58 | W61: 0.8529411765 | X61: -1.049131398 | Y61: 1851 | Z61: 0.90863464 | AA61: 2353.796199
A62: 59 | B62: 1994 | C62: 4043 | V62: 59 | W62: 0.8676470588 | X62: -1.115337358 | Y62: 1659 | Z62: 0.92660584 | AA62: 2245.243102
A63: 60 | B63: 1995 | C63: 7391 | V63: 60 | W63: 0.8823529412 | X63: -1.186831433 | Y63: 1556 | Z63: 0.9354363733 | AA63: 2137.606114
A64: 61 | B64: 1996 | C64: 1908 | V64: 61 | W64: 0.8970588235 | X64: -1.264969245 | Y64: 1549 | Z64: 0.9360159733 | AA64: 2030.862426
A65: 62 | B65: 1997 | C65: 4182 | V65: 62 | W65: 0.9117647059 | X65: -1.35170224 | Y65: 1545 | Z65: 0.936346 | AA65: 1924.990159
A66: 63 | B66: 1998 | C66: 2845 | V66: 63 | W66: 0.9264705882 | X66: -1.449998909 | Y66: 1260 | Z66: 0.957664 | AA66: 1819.968312
A67: 64 | B67: 1999 | C67: 2220 | V67: 64 | W67: 0.9411764706 | X67: -1.564726471 | Y67: 1211 | Z67: 0.9608927733 | AA67: 1715.776717
A68: 65 | B68: 2000 | C68: 5689 | V68: 65 | W68: 0.9558823529 | X68: -1.704780905 | Y68: 992 | Z68: 0.9737582933 | AA68: =IF((1-W68)<$AK$1,$G$9+SQRT((1-W68)*($G$11-$G$9)*($G$10-$G$9)),$G$11-SQRT(W68*($G$11-$G$9)*($G$11-$G$10))) -> 1612.395988
A69: 66 | B69: 2001 | C69: 4214 | V69: 66 | W69: =V69/($V$70+1) -> 0.9705882353 | X69: =NORMSINV(1-W69) -> -1.88950996 | Y69: =LARGE($C$4:$C$70,V69) -> 975 | Z69: =1-IF(Y69<=$G$10,(Y69-$G$9)^2/($G$11-$G$9)/($G$10-$G$9),1-($G$11-Y69)^2/($G$11-$G$9)/($G$11-$G$10)) -> 0.97465 | AA69: 1509.807484
A70: 67 | B70: 2002 | C70: 2755 | V70: 67 | W70: 0.9852941176 | X70: -2.177923069 | Y70: 746 | Z70: 0.9851595733 | AA70: 1407.993266

Sheet Normal
A1: Fitting a probability distribution to data | W1: Weibull | Z1: =CORREL(Z4:Z70,W4:W70) -> 0.9714098372
C2: annual | W2: plotting | X2: deviate of | Y2: ranked | Z2: Normal Distribution
B3: year | C3: peak flow | W3: position | X3: plot pos | Y3: flows | Z3: p | AA3: quantile | AK3: exc prob | AL3: dev | AM3: CDF
A4: 1 | B4: 1936 | C4: 4294 | V4: 1 | W4: =V4/($V$70+1) -> 0.01470588235 | X4: =NORMSINV(1-W4) -> 2.177923069 | Y4: =LARGE($C$4:$C$70,V4) -> 14367 | Z4: =1-_xlfn.NORM.DIST(Y4,$G$9,$G$10,TRUE) -> 0.0002087983827 | AA4: =_xlfn.NORM.INV(1-W4,$G$9,$G$10) -> 10531.43451 | AK4: 0.98 | AL4: =NORMSINV(1-AK4) -> -2.053748911 | AM4: =NORMINV(1-AK4,$G$9,$G$10) -> -1484.452336
A5: 2 | B5: 1937 | C5: 992 | V5: 2 | W5: =V5/($V$70+1) -> 0.02941176471 | X5: =NORMSINV(1-W5) -> 1.88950996 | Y5: =LARGE($C$4:$C$70,V5) -> 12007 | Z5: =1-_xlfn.NORM.DIST(Y5,$G$9,$G$10,TRUE) -> 0.003492300975 | AA5: =_xlfn.NORM.INV(1-W5,$G$9,$G$10) -> 9712.48179 | AK5: 0.95 | AL5: -1.644853627 | AM5: =NORMINV(1-AK5,$G$9,$G$10) -> -323.3889346
A6: 3 | B6: 1938 | C6: 2629 | F6: fit a Normal distribution | V6: 3 | W6: 0.04411764706 | X6: 1.704780905 | Y6: 10694 | Z6: 0.01270295534 | AA6: 9187.941268 | AK6: 0.9 | AL6: -1.281551566 | AM6: 708.2119271
A7: 4 | B7: 1939 | C7: 8157 | V7: 4 | W7: 0.05882352941 | X7: 1.564726471 | Y7: 10192 | Z7: 0.01977667345 | AA7: 8790.254909 | AK7: 0.85 | AL7: -1.036433389 | AM7: 1404.228131
A8: 5 | B8: 1940 | C8: 3316 | F8: parameters are: | V8: 5 | W8: 0.07352941176 | X8: 1.449998909 | Y8: 9622 | Z8: 0.03160974253 | AA8: 8464.484523 | AK8: 0.8 | AL8: -0.8416212336 | AM8: 1957.399746
A9: 6 | B9: 1941 | C9: 10192 | F9: mean = | G9: =AVERAGE(C4:C70) -> 4347.19403 | V9: 6 | W9: 0.08823529412 | X9: 1.35170224 | Y9: 9478 | Z9: 0.03538645801 | AA9: 8185.369872 | AK9: 0.75 | AL9: -0.6744897502 | AM9: 2431.971736
A10: 7 | B10: 1942 | C10: 3270 | F10: stdev = | G10: =STDEV(C4:C70) -> 2839.512822 | V10: 7 | W10: 0.1029411765 | X10: 1.264969245 | Y10: 8273 | Z10: 0.08339941772 | AA10: 7939.09042 | AK10: 0.7 | AL10: -0.5244005127 | AM10: 2858.15205 | AP10: 0 | AQ10: 16000
A11: 8 | B11: 1943 | C11: 12007 | V11: 8 | W11: 0.1176470588 | X11: 1.186831433 | Y11: 8157 | Z11: 0.08984483769 | AA11: 7717.217101 | AK11: 0.65 | AL11: -0.3853204664 | AM11: 3253.071625 | AO11: 0.95 | AP11: =NORMSINV(1-AO11) -> -1.644853627 | AQ11: =AP11 -> -1.644853627 | AR11: 0
A12: 9 | B12: 1944 | C12: 2441 | V12: 9 | W12: 0.1323529412 | X12: 1.115337358 | Y12: 7905 | Z12: 0.1051094923 | AA12: 7514.208758 | AK12: 0.6 | AL12: -0.2533471031 | AM12: 3627.811682 | AO12: 0.9 | AP12: =NORMSINV(1-AO12) -> -1.281551566 | AQ12: =AP12 -> -1.281551566 | AR12: 0
A13: 10 | B13: 1945 | C13: 5057 | V13: 10 | W13: 0.1470588235 | X13: 1.049131398 | Y13: 7391 | Z13: 0.1418720204 | AA13: 7326.216087 | AK13: 0.55 | AL13: -0.1256613469 | AM13: 3990.377024 | AO13: 0.75 | AP13: -0.6744897502 | AQ13: -0.6744897502 | AR13: 0
A14: 11 | B14: 1946 | C14: 4461 | V14: 11 | W14: 0.1617647059 | X14: 0.987230992 | Y14: 7093 | Z14: 0.1667722747 | AA14: 7150.44909 | AK14: 0.5 | AL14: -2.504624782e-15 | AM14: 4347.19403 | AO14: 0.5 | AP14: 0 | AQ14: 0 | AR14: 0
A15: 12 | B15: 1947 | C15: 5556 | E15: histogram | I15: Normal Distribution PDF and CDF | V15: 12 | W15: 0.1764705882 | X15: 0.9288994916 | Y15: 6849 | Z15: 0.1891403091 | AA15: 6984.816047 | AK15: 0.45 | AL15: 0.1256613469 | AM15: 4704.011036 | AO15: 0.25 | AP15: 0.6744897502 | AQ15: 0.6744897502 | AR15: 0
A16: 13 | B16: 1948 | C16: 3278 | E16: 0 | F16: frequency() | G16: rel freq. | H16: cum. freq | I16: index | J16: PDF | K16: CDF | V16: 13 | W16: 0.1911764706 | X16: 0.8735691346 | Y16: 6610 | Z16: 0.2127547393 | AA16: 6827.704789 | AK16: 0.4 | AL16: 0.2533471031 | AM16: 5066.576378 | AO16: 0.1 | AP16: 1.281551566 | AQ16: 1.281551566 | AR16: 0
A17: 14 | B17: 1949 | C17: 5281 | E17: 1000 | F17: =FREQUENCY(C4:C70,E17:E32) -> 3 | G17: =F17/SUM($F$17:$F$32) -> 0.0447761194 | H17: =G17 -> 0.0447761194 | I17: =AVERAGE(E16:E17) -> 500 | J17: =NORMDIST(I17,$G$9,$G$10,FALSE)*1000 -> 0.05611127526 | K17: =NORMDIST(I17,$G$9,$G$10,TRUE) -> 0.08772818268 | V17: 14 | W17: 0.2058823529 | X17: 0.8207920883 | Y17: 5689 | Z17: 0.3182678614 | AA17: 6677.843689 | AK17: 0.35 | AL17: 0.3853204664 | AM17: 5441.316435 | AO17: 0.05 | AP17: 1.644853627 | AQ17: 1.644853627 | AR17: 0
A18: 15 | B18: 1950 | C18: 3177 | E18: 2000 | F18: 9 | G18: =F18/SUM($F$17:$F$32) -> 0.1343283582 | H18: =H17+G18 -> 0.1791044776 | I18: =AVERAGE(E17:E18) -> 1500 | J18: =NORMDIST(I18,$G$9,$G$10,FALSE)*1000 -> 0.08498506 | K18: 0.1580015807 | V18: 15 | W18: 0.2205882353 | X18: 0.7702080819 | Y18: 5665 | Z18: 0.321289556 | AA18: 6534.209754 | AK18: 0.3 | AL18: 0.5244005127 | AM18: 5836.23601 | AO18: 0.02 | AP18: 2.053748911 | AQ18: 2.053748911 | AR18: 0
A19: 16 | B19: 1951 | C19: 3419 | E19: 3000 | F19: 15 | G19: 0.223880597 | H19: =H18+G19 -> 0.4029850746 | I19: =AVERAGE(E18:E19) -> 2500 | J19: =NORMDIST(I19,$G$9,$G$10,FALSE)*1000 -> 0.1137028301 | K19: 0.2576743107 | V19: 16 | W19: 0.2352941176 | X19: 0.721522284 | Y19: 5646 | Z19: 0.3236901618 | AA19: 6395.965807 | AK19: 0.25 | AL19: 0.6744897502 | AM19: 6262.416324 | AO19: 0.01 | AP19: 2.326347874 | AQ19: 2.326347874 | AR19: 0
A20: 17 | B20: 1952 | C20: 746 | E20: 4000 | F20: 9 | G20: 0.1343283582 | H20: 0.5373134328 | I20: 3500 | J20: 0.1343804857 | K20: 0.3827146127 | V20: 17 | W20: 0.25 | X20: 0.6744897502 | Y20: 5632 | Z20: 0.3254637427 | AA20: 6262.416324 | AK20: 0.2 | AL20: 0.8416212336 | AM20: 6736.988314
A21: 18 | B21: 1953 | C21: 5632 | E21: 5000 | F21: 10 | G21: 0.1492537313 | H21: 0.6865671642 | I21: 4500 | J21: 0.1402934455 | K21: 0.5214583823 | V21: 18 | W21: 0.2647058824 | X21: 0.6289042176 | Y21: 5556 | Z21: 0.3351599765 | AA21: 6132.97562 | AK21: 0.15 | AL21: 1.036433389 | AM21: 7290.159929
A22: 19 | B22: 1954 | C22: 1659 | E22: 6000 | F22: 8 | G22: 0.1194029851 | H22: 0.8059701493 | I22: 5500 | J22: 0.1293822797 | K22: 0.6576240115 | V22: 19 | W22: 0.2794117647 | X22: 0.5845898571 | Y22: 5299 | Z22: 0.3687369421 | AA22: 6007.144425 | AK22: 0.1 | AL22: 1.281551566 | AM22: 7986.176133
A23: 20 | B23: 1955 | C23: 4539 | E23: 7000 | F23: 2 | G23: 0.02985074627 | H23: 0.8358208955 | I23: 6500 | J23: 0.1054019049 | K23: 0.7758224959 | V23: 20 | W23: 0.2941176471 | X23: 0.5413950851 | Y23: 5281 | Z23: 0.3711302512 | AA23: 5884.492316 | AK23: 0.05 | AL23: 1.644853627 | AM23: 9017.776994
A24: 21 | B24: 1956 | C24: 2986 | E24: 8000 | F24: 3 | G24: 0.0447761194 | H24: 0.8805970149 | I24: 7500 | J24: 0.07585048523 | K24: 0.8665723105 | V24: 21 | W24: 0.3088235294 | X24: 0.4991878421 | Y24: 5057 | Z24: 0.4013035109 | AA24: 5764.644308 | AK24: 0.02 | AL24: 2.053748911 | AM24: 10178.8404
A25: 22 | B25: 1957 | C25: 6849 | E25: 9000 | F25: 2 | G25: 0.02985074627 | H25: 0.9104477612 | I25: 8500 | J25: 0.0482174801 | K25: 0.9281987683 | V25: 22 | W25: 0.3235294118 | X25: 0.457851931 | Y25: 4700 | Z25: 0.450559155 | AA25: 5647.270459 | AK25: 0.01 | AL25: 2.326347874 | AM25: 10952.88865
A26: 23 | B26: 1958 | C26: 1549 | E26: 10000 | F26: 2 | G26: 0.02985074627 | H26: 0.9402985075 | I26: 9500 | J26: 0.02707614925 | K26: 0.9652134185 | V26: 23 | W26: 0.3382352941 | X26: 0.4172841394 | Y26: 4539 | Z26: 0.4730723668 | AA26: 5532.077694
A27: 24 | B27: 1959 | C27: 4051 | E27: 11000 | F27: 2 | G27: 0.02985074627 | H27: 0.9701492537 | I27: 10500 | J27: 0.01343091287 | K27: 0.9848769555 | V27: 24 | W27: 0.3529411765 | X27: 0.3773919438 | Y27: 4461 | Z27: 0.4840149125 | AA27: 5418.803293
A28: 25 | B28: 1960 | C28: 975 | E28: 12000 | F28: 0 | G28: 0 | H28: 0.9701492537 | I28: 11500 | J28: 0.005885188895 | K28: 0.9941159978 | V28: 25 | W28: 0.3676470588 | X28: 0.3380916568 | Y28: 4355 | Z28: 0.4989032881 | AA28: 5307.209624
A29: 26 | B29: 1961 | C29: 1260 | E29: 13000 | F29: 1 | G29: 0.01492537313 | H29: 0.9850746269 | I29: 12500 | J29: 0.002277988487 | K29: 0.997955409 | V29: 26 | W29: 0.3823529412 | X29: 0.2993069105 | Y29: 4294 | Z29: 0.5074731504 | AA29: 5197.07984
A30: 27 | B30: 1962 | C30: 4355 | E30: 14000 | F30: 0 | G30: 0 | H30: 0.9850746269 | I30: 13500 | J30: 0.000778894946 | K30: 0.9993665453 | V30: 27 | W30: 0.3970588235 | X30: 0.2609674004 | Y30: 4214 | Z30: 0.5187064661 | AA30: 5088.214309
A31: 28 | B31: 1963 | C31: 9622 | E31: 15000 | F31: 1 | G31: 0.01492537313 | H31: 1 | I31: 14500 | J31: 0.0002352569649 | K31: 0.9998252505 | V31: 28 | W31: 0.4117647059 | X31: 0.2230078309 | Y31: 4182 | Z31: 0.5231961363 | AA31: 4980.427625
A32: 29 | B32: 1964 | C32: 5299 | E32: 16000 | F32: 0 | G32: 0 | H32: 1 | I32: 15500 | J32: 6.276858473e-05 | K32: 0.9999571222 | V32: 29 | W32: 0.4264705882 | X32: 0.1853670173 | Y32: 4145 | Z32: 0.5283836126 | AA32: 4873.546052
A33: 30 | B33: 1965 | C33: 7093 | V33: 30 | W33: 0.4411764706 | X33: 0.1479871097 | Y33: 4051 | Z33: 0.5415389503 | AA33: 4767.405325
A34: 31 | B34: 1966 | C34: 14367 | G34: =SUM(G17:G32) -> 1 | V34: 31 | W34: 0.4558823529 | X34: 0.1108129123 | Y34: 4043 | Z34: 0.5426566601 | AA34: 4661.848715
A35: 32 | B35: 1967 | C35: 2626 | V35: 32 | W35: 0.4705882353 | X35: 0.07379127381 | Y35: 3914 | Z35: 0.5606270803 | AA35: 4556.725298
A36: 33 | B36: 1968 | C36: 1898 | V36: 33 | W36: 0.4852941176 | X36: 0.03687053266 | Y36: 3552 | Z36: 0.6102788693 | AA36: 4451.88838
A37: 34 | B37: 1969 | C37: 8273 | V37: 34 | W37: 0.5 | X37: 0 | Y37: 3419 | Z37: 0.6281225508 | AA37: 4347.19403
A38: 35 | B38: 1970 | C38: 5646 | V38: 35 | W38: 0.5147058824 | X38: -0.03687053266 | Y38: 3354 | Z38: 0.6367466724 | AA38: 4242.49968
A39: 36 | B39: 1971 | C39: 3552 | V39: 36 | W39: 0.5294117647 | X39: -0.07379127381 | Y39: 3316 | Z39: 0.6417568636 | AA39: 4137.662762
A40: 37 | B40: 1972 | C40: 2041 | V40: 37 | W40: 0.5441176471 | X40: -0.1108129123 | Y40: 3278 | Z40: 0.6467427647 | AA40: 4032.539345
A41: 38 | B41: 1973 | C41: 2700 | V41: 38 | W41: 0.5588235294 | X41: -0.1479871097 | Y41: 3270 | Z41: 0.6477892604 | AA41: 3926.982734
A42: 39 | B42: 1974 | C42: 1545 | V42: 39 | W42: 0.5735294118 | X42: -0.1853670173 | Y42: 3177 | Z42: 0.6598709101 | AA42: 3820.842007
A43: 40 | B43: 1975 | C43: 2064 | V43: 40 | W43: 0.5882352941 | X43: -0.2230078309 | Y43: 3165 | Z43: 0.6614182609 | AA43: 3713.960434
A44: 41 | B44: 1976 | C44: 1851 | V44: 41 | W44: 0.6029411765 | X44: -0.2609674004 | Y44: 2986 | Z44: 0.6841643843 | AA44: 3606.17375
A45: 42 | B45: 1977 | C45: 6610 | V45: 42 | W45: 0.6176470588 | X45: -0.2993069105 | Y45: 2864 | Z45: 0.699283544 | AA45: 3497.30822
A46: 43 | B46: 1978 | C46: 1211 | V46: 43 | W46: 0.6323529412 | X46: -0.3380916568 | Y46: 2845 | Z46: 0.701608482 | AA46: 3387.178435
A47: 44 | B47: 1979 | C47: 2712 | V47: 44 | W47: 0.6470588235 | X47: -0.3773919438 | Y47: 2828 | Z47: 0.7036817281 | AA47: 3275.584766
A48: 45 | B48: 1980 | C48: 2828 | V48: 45 | W48: 0.6617647059 | X48: -0.4172841394 | Y48: 2755 | Z48: 0.7125084739 | AA48: 3162.310366
A49: 46 | B49: 1981 | C49: 3914 | V49: 46 | W49: 0.6764705882 | X49: -0.457851931 | Y49: 2712 | Z49: 0.7176489227 | AA49: 3047.117601
A50: 47 | B50: 1982 | C50: 10694 | V50: 47 | W50: 0.6911764706 | X50: -0.4991878421 | Y50: 2700 | Z50: 0.7190755344 | AA50: 2929.743752
A51: 48 | B51: 1983 | C51: 2864 | V51: 48 | W51: 0.7058823529 | X51: -0.5413950851 | Y51: 2629 | Z51: 0.7274442869 | AA51: 2809.895744
A52: 49 | B52: 1984 | C52: 2021 | V52: 49 | W52: 0.7205882353 | X52: -0.5845898571 | Y52: 2626 | Z52: 0.7277951523 | AA52: 2687.243635
A53: 50 | B53: 1985 | C53: 9478 | V53: 50 | W53: 0.7352941176 | X53: -0.6289042176 | Y53: 2488 | Z53: 0.7436882453 | AA53: 2561.41244
A54: 51 | B54: 1986 | C54: 1556 | V54: 51 | W54: 0.75 | X54: -0.6744897502 | Y54: 2441 | Z54: 0.7489885432 | AA54: 2431.971736
A55: 52 | B55: 1987 | C55: 3354 | V55: 52 | W55: 0.7647058824 | X55: -0.721522284 | Y55: 2220 | Z55: 0.7731137339 | AA55: 2298.422253
A56: 53 | B56: 1988 | C56: 2488 | V56: 53 | W56: 0.7794117647 | X56: -0.7702080819 | Y56: 2064 | Z56: 0.7893244664 | AA56: 2160.178306
A57: 54 | B57: 1989 | C57: 4700 | V57: 54 | W57: 0.7941176471 | X57: -0.8207920883 | Y57: 2041 | Z57: 0.7916556721 | AA57: 2016.544371
A58: 55 | B58: 1990 | C58: 7905 | V58: 55 | W58: 0.8088235294 | X58: -0.8735691346 | Y58: 2021 | Z58: 0.7936703842 | AA58: 1866.683271
A59: 56 | B59: 1991 | C59: 4145 | V59: 56 | W59: 0.8235294118 | X59: -0.9288994916 | Y59: 1908 | Z59: 0.8048348438 | AA59: 1709.572013
A60: 57 | B60: 1992 | C60: 5665 | V60: 57 | W60: 0.8382352941 | X60: -0.987230992 | Y60: 1898 | Z60: 0.8058048463 | AA60: 1543.93897
A61: 58 | B61: 1993 | C61: 3165 | V61: 58 | W61: 0.8529411765 | X61: -1.049131398 | Y61: 1851 | Z61: 0.8103244002 | AA61: 1368.171973
A62: 59 | B62: 1994 | C62: 4043 | V62: 59 | W62: 0.8676470588 | X62: -1.115337358 | Y62: 1659 | Z62: 0.8281066097 | AA62: 1180.179301
A63: 60 | B63: 1995 | C63: 7391 | V63: 60 | W63: 0.8823529412 | X63: -1.186831433 | Y63: 1556 | Z63: 0.837192201 | AA63: 977.1709587
A64: 61 | B64: 1996 | C64: 1908 | V64: 61 | W64: 0.8970588235 | X64: -1.264969245 | Y64: 1549 | Z64: 0.8377981245 | AA64: 755.2976392
A65: 62 | B65: 1997 | C65: 4182 | V65: 62 | W65: 0.9117647059 | X65: -1.35170224 | Y65: 1545 | Z65: 0.8381437064 | AA65: 509.0181877
A66: 63 | B66: 1998 | C66: 2845 | V66: 63 | W66: 0.9264705882 | X66: -1.449998909 | Y66: 1260 | Z66: 0.8615316734 | AA66: 229.9035362
A67: 64 | B67: 1999 | C67: 2220 | V67: 64 | W67: 0.9411764706 | X67: -1.564726471 | Y67: 1211 | Z67: 0.8653081928 | AA67: -95.86684893
A68: 65 | B68: 2000 | C68: 5689 | V68: 65 | W68: 0.9558823529 | X68: -1.704780905 | Y68: 992 | Z68: 0.8813195682 | AA68: -493.5532087
A69: 66 | B69: 2001 | C69: 4214 | V69: 66 | W69: =V69/($V$70+1) -> 0.9705882353 | X69: =NORMSINV(1-W69) -> -1.88950996 | Y69: =LARGE($C$4:$C$70,V69) -> 975 | Z69: =1-_xlfn.NORM.DIST(Y69,$G$9,$G$10,TRUE) -> 0.88250369 | AA69: =_xlfn.NORM.INV(1-W69,$G$9,$G$10) -> -1018.09373
A70: 67 | B70: 2002 | C70: 2755 | V70: 67 | W70: 0.9852941176 | X70: -2.177923069 | Y70: 746 | Z70: 0.8976445185 | AA70: -1837.046451

Sheet LogNormal
A1: Fitting a probability distribution to data | W1: Weibull | Z1: =CORREL(Z4:Z70,W4:W70) -> 0.9985464255
C2: annual | W2: plotting | X2: deviate of | Y2: ranked | Z2: logNormal Distrib.
B3: year | C3: peak flow | D3: log flow | W3: position | X3: plot pos | Y3: flows | Z3: p | AA3: quantile | AK3: exc prob | AL3: dev | AM3: CDF
A4: 1 | B4: 1936 | C4: 4294 | D4: =LOG(C4) -> 3.63286204 | V4: 1 | W4: =V4/($V$70+1) -> 0.01470588235 | X4: =NORMSINV(1-W4) -> 2.177923069 | Y4: =LARGE($C$4:$C$70,V4) -> 14367 | Z4: =1-_xlfn.NORM.DIST(LOG(Y4),$G$9,$G$10,TRUE) -> 0.01524767194 | AA4: =10^_xlfn.NORM.INV(1-W4,$G$9,$G$10) -> 14500.08032 | AK4: 0.98 | AL4: =NORMSINV(1-AD31) -> -2.053748911 | AM4: =10^NORMINV(1-AK4,$G$9,$G$10) -> 951.9645337
A5: 2 | B5: 1937 | C5: 992 | D5: =LOG(C5) -> 2.996511672 | V5: 2 | W5: =V5/($V$70+1) -> 0.02941176471 | X5: =NORMSINV(1-W5) -> 1.88950996 | Y5: =LARGE($C$4:$C$70,V5) -> 12007 | Z5: =1-_xlfn.NORM.DIST(LOG(Y5),$G$9,$G$10,TRUE) -> 0.02973040013 | AA5: =10^_xlfn.NORM.INV(1-W5,$G$9,$G$10) -> 12043.67775 | AK5: 0.95 | AL5: -1.644853627 | AM5: =10^NORMINV(1-AK5,$G$9,$G$10) -> 1238.530602
A6: 3 | B6: 1938 | C6: 2629 | D6: 3.419790586 | F6: fit a logNormal distribution | V6: 3 | W6: 0.04411764706 | X6: 1.704780905 | Y6: 10694 | Z6: 0.04411340599 | AA6: 10693.6871 | AK6: 0.9 | AL6: -1.281551566 | AM6: =10^NORMINV(1-AK6,$G$9,$G$10) -> 1564.766132
A7: 4 | B7: 1939 | C7: 8157 | D7: 3.911530462 | V7: 4 | W7: 0.05882352941 | X7: 1.564726471 | Y7: 10192 | Z7: 0.05153821309 | AA7: 9771.974994 | AK7: 0.85 | AL7: -1.036433389 | AM7: 1832.144878
A8: 5 | B8: 1940 | C8: 3316 | D8: 3.520614522 | F8: parameters are: | V8: 5 | W8: 0.07352941176 | X8: 1.449998909 | Y8: 9622 | Z8: 0.06169561009 | AA8: 9076.450967 | AK8: 0.8 | AL8: -0.8416212336 | AM8: 2076.871788
A9: 6 | B9: 1941 | C9: 10192 | D9: 4.008259415 | F9: mean of logs = | G9: =AVERAGE(D4:D70) -> 3.552642289 | V9: 6 | W9: 0.08823529412 | X9: 1.35170224 | Y9: 9478 | Z9: 0.06459998198 | AA9: 8520.051289 | AK9: 0.75 | AL9: -0.6744897502 | AM9: 2312.7188
A10: 7 | B10: 1942 | C10: 3270 | D10: 3.514547753 | F10: stdev of logs = | G10: =STDEV(D4:D70) -> 0.2794993669 | V10: 7 | W10: 0.1029411765 | X10: 1.264969245 | Y10: 8273 | Z10: 0.09577958687 | AA10: 8057.501443 | AK10: 0.7 | AL10: -0.5244005127 | AM10: 2547.256491
A11: 8 | B11: 1943 | C11: 12007 | D11: 4.079434511 | V11: 8 | W11: 0.1176470588 | X11: 1.186831433 | Y11: 8157 | Z11: 0.09956410117 | AA11: 7662.331249 | AK11: 0.65 | AL11: -0.3853204664 | AM11: 2785.771317
A12: 9 | B12: 1944 | C12: 2441 | D12: 3.387567779 | V12: 9 | W12: 0.1323529412 | X12: 1.115337358 | Y12: 7905 | Z12: 0.1083634185 | AA12: 7317.763579 | AK12: 0.6 | AL12: -0.2533471031 | AM12: 3032.717337
A13: 10 | B13: 1945 | C13: 5057 | D13: 3.703892954 | V13: 10 | W13: 0.1470588235 | X13: 1.049131398 | Y13: 7391 | Z13: 0.1290673586 | AA13: 7012.515762 | AK13: 0.55 | AL13: -0.1256613469 | AM13: 3292.45632 | AP13: Interpolation
A14: 11 | B14: 1946 | C14: 4461 | D14: 3.649432223 | V14: 11 | W14: 0.1617647059 | X14: 0.987230992 | Y14: 7093 | Z14: 0.143016741 | AA14: 6738.647301 | AK14: 0.5 | AL14: -2.504624782e-15 | AM14: 3569.786879 | AQ14: D | AT14: A | AU14: B | AV14: C | AW14: E
A15: 12 | B15: 1947 | C15: 5556 | D15: 3.744762237 | E15: histogram | I15: Normal Distribution PDF and CDF | V15: 12 | W15: 0.1764705882 | X15: 0.9288994916 | Y15: 6849 | Z15: 0.1556565608 | AA15: 6490.364816 | AK15: 0.45 | AL15: 0.1256613469 | AM15: 3870.477577 | AP15: Normal Distribution PDF and CDF | AT15: first | AV15: second
A16: 13 | B16: 1948 | C16: 3278 | D16: 3.515608949 | E16: 0 | F16: frequency() | G16: rel freq. | H16: cum. freq | I16: index | J16: PDF | K16: CDF | V16: 13 | W16: 0.1911764706 | X16: 0.8735691346 | Y16: 6610 | Z16: 0.1692129586 | AA16: 6263.31579 | AK16: 0.4 | AL16: 0.2533471031 | AM16: 4201.967063 | AP16: index | AR16: lower | AS16: upper | AT16: lower | AU16: upper | AV16: lower | AW16: upper | AX16: interp
A17: 14 | B17: 1949 | C17: 5281 | D17: 3.722716167 | E17: 1000 | F17: =FREQUENCY(C4:C70,E17:E32) -> 3 | G17: =F17/SUM($F$17:$F$32) -> 0.0447761194 | H17: =G17 -> 0.0447761194 | I17: =AVERAGE(E16:E17) -> 500 | J17: =AX17 -> 0.001527523545 | K17: =NORMDIST(LOG(I17),$G$9,$G$10,TRUE) -> 0.001127967265 | V17: 14 | W17: 0.2058823529 | X17: 0.8207920883 | Y17: 5689 | Z17: 0.2344932186 | AA17: 6054.149734 | AK17: 0.35 | AL17: 0.3853204664 | AM17: 4574.452426 | AP17: =AVERAGE(E16:E17) -> 500 | AQ17: =LOG(AP17) -> 2.698970004 | AR17: =MATCH(AQ17,$I$36:$I$53,1) -> 1 | AS17: =IF(AR17<16,AR17+1,AR17) -> 2 | AT17: =IF(AR17<>AS17,INDEX($J$36:$J$53,AR17),INDEX($J$36:$J$53,AR17-1)) -> 0.0007758177598 | AU17: =INDEX($J$36:$J$53,AS17) -> 0.002310850879 | AV17: =IF(AR17<>AS17,INDEX($I$36:$I$53,AR17),INDEX($I$36:$I$53,AR17-1)) -> 2.65 | AW17: =INDEX($I$36:$I$53,AS17) -> 2.75 | AX17: =AT17+(AU17-AT17)*(AQ17-AV17)/(AW17-AV17) -> 0.001527523545
A18: 15 | B18: 1950 | C18: 3177 | D18: 3.502017215 | E18: 2000 | F18: 9 | G18: =F18/SUM($F$17:$F$32) -> 0.1343283582 | H18: =H17+G18 -> 0.1791044776 | I18: =AVERAGE(E17:E18) -> 1500 | J18: =AX18 -> 0.05809700867 | K18: 0.08895245207 | V18: 15 | W18: 0.2205882353 | X18: 0.7702080819 | Y18: 5665 | Z18: 0.2365142485 | AA18: 5860.234032 | AK18: 0.3 | AL18: 0.5244005127 | AM18: 5002.785705 | AP18: =AVERAGE(E17:E18) -> 1500 | AQ18: =LOG(AP18) -> 3.176091259 | AR18: =MATCH(AQ18,$I$36:$I$53,1) -> 6 | AS18: 7 | AT18: =IF(AR18<>AS18,INDEX($J$36:$J$53,AR18),INDEX($J$36:$J$53,AR18-1)) -> 0.05056936272 | AU18: =INDEX($J$36:$J$53,AS18) -> 0.0794205804 | AV18: =IF(AR18<>AS18,INDEX($I$36:$I$53,AR18),INDEX($I$36:$I$53,AR18-1)) -> 3.15 | AW18: =INDEX($I$36:$I$53,AS18) -> 3.25 | AX18: =AT18+(AU18-AT18)*(AQ18-AV18)/(AW18-AV18) -> 0.05809700867
A19: 16 | B19: 1951 | C19: 3419 | D19: 3.533899101 | E19: 3000 | F19: 15 | G19: 0.223880597 | H19: =H18+G19 -> 0.4029850746 | I19: =AVERAGE(E18:E19) -> 2500 | J19: 0.1210983022 | K19: 0.2899612987 | V19: 16 | W19: 0.2352941176 | X19: 0.721522284 | Y19: 5646 | Z19: 0.2381271235 | AA19: 5679.463469 | AK19: 0.25 | AL19: 0.6744897502 | AM19: 5510.128754 | AP19: 2500 | AQ19: 3.397940009 | AR19: =MATCH(AQ19,$I$36:$I$53,1) -> 8 | AS19: 9 | AT19: =IF(AR19<>AS19,INDEX($J$36:$J$53,AR19),INDEX($J$36:$J$53,AR19-1)) -> 0.1097451425 | AU19: =INDEX($J$36:$J$53,AS19) -> 0.1334271567 | AV19: =IF(AR19<>AS19,INDEX($I$36:$I$53,AR19),INDEX($I$36:$I$53,AR19-1)) -> 3.35 | AW19: =INDEX($I$36:$I$53,AS19) -> 3.45 | AX19: 0.1210983022
A20: 17 | B20: 1952 | C20: 746 | D20: 2.872738827 | E20: 4000 | F20: 9 | G20: 0.1343283582 | H20: 0.5373134328 | I20: 3500 | J20: 0.1421764792 | K20: 0.4877635063 | V20: 17 | W20: 0.25 | X20: 0.6744897502 | Y20: 5632 | Z20: 0.2393228968 | AA20: 5510.128754 | AK20: 0.2 | AL20: 0.8416212336 | AM20: 6135.852214 | AP20: 3500 | AQ20: 3.544068044 | AR20: =MATCH(AQ20,$I$36:$I$53,1) -> 9 | AS20: 10 | AT20: =IF(AR20<>AS20,INDEX($J$36:$J$53,AR20),INDEX($J$36:$J$53,AR20-1)) -> 0.1334271567 | AU20: =INDEX($J$36:$J$53,AS20) -> 0.1427282137 | AV20: =IF(AR20<>AS20,INDEX($I$36:$I$53,AR20),INDEX($I$36:$I$53,AR20-1)) -> 3.45 | AW20: =INDEX($I$36:$I$53,AS20) -> 3.55 | AX20: 0.1421764792
A21: 18 | B21: 1953 | C21: 5632 | D21: 3.750662646 | E21: 5000 | F21: 10 | G21: 0.1492537313 | H21: 0.6865671642 | I21: 4500 | J21: 0.1335909523 | K21: 0.6405101475 | V21: 18 | W21: 0.2647058824 | X21: 0.6289042176 | Y21: 5556 | Z21: 0.2459242709 | AA21: 5350.823424 | AK21: 0.15 | AL21: 1.036433389 | AM21: 6955.442506 | AP21: 4500 | AQ21: 3.653212514 | AR21: =MATCH(AQ21,$I$36:$I$53,1) -> 11 | AS21: 12 | AT21: =IF(AR21<>AS21,INDEX($J$36:$J$53,AR21),INDEX($J$36:$J$53,AR21-1)) -> 0.1343328114 | AU21: =INDEX($J$36:$J$53,AS21) -> 0.1112400184 | AV21: =IF(AR21<>AS21,INDEX($I$36:$I$53,AR21),INDEX($I$36:$I$53,AR21-1)) -> 3.65 | AW21: =INDEX($I$36:$I$53,AS21) -> 3.75 | AX21: 0.1335909523
A22: 19 | B22: 1954 | C22: 1659 | D22: 3.219846386 | E22: 6000 | F22: 8 | G22: 0.1194029851 | H22: 0.8059701493 | I22: 5500 | J22: 0.1134655425 | K22: 0.7490906369 | V22: 19 | W22: 0.2794117647 | X22: 0.5845898571 | Y22: 5299 | Z22: 0.2696797555 | AA22: 5200.376461 | AK22: 0.1 | AL22: 1.281551566 | AM22: 8143.950777 | AP22: 5500 | AQ22: 3.740362689 | AR22: =MATCH(AQ22,$I$36:$I$53,1) -> 11 | AS22: 12 | AT22: =IF(AR22<>AS22,INDEX($J$36:$J$53,AR22),INDEX($J$36:$J$53,AR22-1)) -> 0.1343328114 | AU22: =INDEX($J$36:$J$53,AS22) -> 0.1112400184 | AV22: =IF(AR22<>AS22,INDEX($I$36:$I$53,AR22),INDEX($I$36:$I$53,AR22-1)) -> 3.65 | AW22: =INDEX($I$36:$I$53,AS22) -> 3.75 | AX22: 0.1134655425
A23: 20 | B23: 1955 | C23: 4539 | D23: 3.656960183 | E23: 7000 | F23: 2 | G23: 0.02985074627 | H23: 0.8358208955 | I23: 6500 | J23: 0.09224571948 | K23: 0.8241261043 | V23: 20 | W23: 0.2941176471 | X23: 0.5413950851 | Y23: 5281 | Z23: 0.2714297157 | AA23: 5057.802566 | AK23: 0.05 | AL23: 1.644853627 | AM23: 10289.11062 | AP23: 6500 | AQ23: 3.812913357 | AR23: =MATCH(AQ23,$I$36:$I$53,1) -> 12 | AS23: 13 | AT23: =IF(AR23<>AS23,INDEX($J$36:$J$53,AR23),INDEX($J$36:$J$53,AR23-1)) -> 0.1112400184 | AU23: =INDEX($J$36:$J$53,AS23) -> 0.08104881588 | AV23: =IF(AR23<>AS23,INDEX($I$36:$I$53,AR23),INDEX($I$36:$I$53,AR23-1)) -> 3.75 | AW23: =INDEX($I$36:$I$53,AS23) -> 3.85 | AX23: 0.09224571948
A24: 21 | B24: 1956 | C24: 2986 | D24: 3.475089803 | E24: 8000 | F24: 3 | G24: 0.0447761194 | H24: 0.8805970149 | I24: 7500 | J24: 0.07375788649 | K24: 0.875659466 | V24: 21 | W24: 0.3088235294 | X24: 0.4991878421 | Y24: 5057 | Z24: 0.2942026136 | AA24: 4922.264814 | AK24: 0.02 | AL24: 2.053748911 | AM24: 13386.40034 | AP24: 7500 | AQ24: 3.875061263 | AR24: =MATCH(AQ24,$I$36:$I$53,1) -> 13 | AS24: 14 | AT24: =IF(AR24<>AS24,INDEX($J$36:$J$53,AR24),INDEX($J$36:$J$53,AR24-1)) -> 0.08104881588 | AU24: =INDEX($J$36:$J$53,AS24) -> 0.05195639033 | AV24: =IF(AR24<>AS24,INDEX($I$36:$I$53,AR24),INDEX($I$36:$I$53,AR24-1)) -> 3.85 | AW24: =INDEX($I$36:$I$53,AS24) -> 3.95 | AX24: 0.07375788649
A25: 22 | B25: 1957 | C25: 6849 | D25: 3.835627166 | E25: 9000 | F25: 2 | G25: 0.02985074627 | H25: 0.9104477612 | I25: 8500 | J25: 0.05794392405 | K25: 0.9111774197 | V25: 22 | W25: 0.3235294118 | X25: 0.457851931 | Y25: 4700 | Z25: 0.334547209 | AA25: 4793.046184 | AK25: 0.01 | AL25: 2.326347874 | AM25: 15953.46584 | AP25: 8500 | AQ25: 3.929418926 | AR25: =MATCH(AQ25,$I$36:$I$53,1) -> 13 | AS25: 14 | AT25: =IF(AR25<>AS25,INDEX($J$36:$J$53,AR25),INDEX($J$36:$J$53,AR25-1)) -> 0.08104881588 | AU25: =INDEX($J$36:$J$53,AS25) -> 0.05195639033 | AV25: =IF(AR25<>AS25,INDEX($I$36:$I$53,AR25),INDEX($I$36:$I$53,AR25-1)) -> 3.85 | AW25: =INDEX($I$36:$I$53,AS25) -> 3.95 | AX25: 0.05794392405
A26: 23 | B26: 1958 | C26: 1549 | D26: 3.190051418 | E26: 10000 | F26: 2 | G26: 0.02985074627 | H26: 0.9402985075 | I26: 9500 | J26: 0.0456765375 | K26: 0.9358533704 | V26: 23 | W26: 0.3382352941 | X26: 0.4172841394 | Y26: 4539 | Z26: 0.3544881755 | AA26: 4669.527546 | AP26: 9500 | AQ26: 3.977723605 | AR26: =MATCH(AQ26,$I$36:$I$53,1) -> 14 | AS26: 15 | AT26: =IF(AR26<>AS26,INDEX($J$36:$J$53,AR26),INDEX($J$36:$J$53,AR26-1)) -> 0.05195639033 | AU26: =INDEX($J$36:$J$53,AS26) -> 0.02930474468 | AV26: =IF(AR26<>AS26,INDEX($I$36:$I$53,AR26),INDEX($I$36:$I$53,AR26-1)) -> 3.95 | AW26: =INDEX($I$36:$I$53,AS26) -> 4.05 | AX26: 0.0456765375
A27: 24 | B27: 1959 | C27: 4051 | D27: 3.607562243 | E27: 11000 | F27: 2 | G27: 0.02985074627 | H27: 0.9701492537 | I27: 10500 | J27: 0.03583084257 | K27: 0.9531680596 | V27: 24 | W27: 0.3529411765 | X27: 0.3773919438 | Y27: 4461 | Z27: 0.3645595705 | AA27: 4551.170422 | AP27: 10500 | AQ27: 4.021189299 | AR27: =MATCH(AQ27,$I$36:$I$53,1) -> 14 | AS27: 15 | AT27: =IF(AR27<>AS27,INDEX($J$36:$J$53,AR27),INDEX($J$36:$J$53,AR27-1)) -> 0.05195639033 | AU27: =INDEX($J$36:$J$53,AS27) -> 0.02930474468 | AV27: =IF(AR27<>AS27,INDEX($I$36:$I$53,AR27),INDEX($I$36:$I$53,AR27-1)) -> 3.95 | AW27: =INDEX($I$36:$I$53,AS27) -> 4.05 | AX27: 0.03583084257
A28: 25 | B28: 1960 | C28: 975 | D28: 2.989004616 | E28: 12000 | F28: 0 | G28: 0 | H28: 0.9701492537 | I28: 11500 | J28: 0.02772551949 | K28: 0.9654476143 | V28: 25 | W28: 0.3676470588 | X28: 0.3380916568 | Y28: 4355 | Z28: 0.3786872095 | AA28: 4437.50334 | AP28: 11500 | AQ28: 4.06069784 | AR28: =MATCH(AQ28,$I$36:$I$53,1) -> 15 | AS28: 16 | AT28: =IF(AR28<>AS28,INDEX($J$36:$J$53,AR28),INDEX($J$36:$J$53,AR28-1)) -> 0.02930474468 | AU28: =INDEX($J$36:$J$53,AS28) -> 0.01454265118 | AV28: =IF(AR28<>AS28,INDEX($I$36:$I$53,AR28),INDEX($I$36:$I$53,AR28-1)) -> 4.05 | AW28: =INDEX($I$36:$I$53,AS28) -> 4.15 | AX28: 0.02772551949
A29: 26 | B29: 1961 | C29: 1260 | D29: 3.100370545 | E29: 13000 | F29: 1 | G29: 0.01492537313 | H29: 0.9850746269 | I29: 12500 | J29: 0.0223798447 | K29: 0.9742503121 | V29: 26 | W29: 0.3823529412 | X29: 0.2993069105 | Y29: 4294 | Z29: 0.3870514579 | AA29: 4328.110906 | AP29: 12500 | AQ29: 4.096910013 | AR29: =MATCH(AQ29,$I$36:$I$53,1) -> 15 | AS29: 16 | AT29: =IF(AR29<>AS29,INDEX($J$36:$J$53,AR29),INDEX($J$36:$J$53,AR29-1)) -> 0.02930474468 | AU29: =INDEX($J$36:$J$53,AS29) -> 0.01454265118 | AV29: =IF(AR29<>AS29,INDEX($I$36:$I$53,AR29),INDEX($I$36:$I$53,AR29-1)) -> 4.05 | AW29: =INDEX($I$36:$I$53,AS29) -> 4.15 | AX29: 0.0223798447
A30: 27 | B30: 1962 | C30: 4355 | D30: 3.638988159 | E30: 14000 | F30: 0 | G30: 0 | H30: 0.9850746269 | I30: 13500 | J30: 0.01744579867 | K30: 0.9806272397 | V30: 27 | W30: 0.3970588235 | X30: 0.2609674004 | Y30: 4214 | Z30: 0.3982843524 | AA30: 4222.624976 | AP30: 13500 | AQ30: 4.130333768 | AR30: =MATCH(AQ30,$I$36:$I$53,1) -> 15 | AS30: 16 | AT30: =IF(AR30<>AS30,INDEX($J$36:$J$53,AR30),INDEX($J$36:$J$53,AR30-1)) -> 0.02930474468 | AU30: =INDEX($J$36:$J$53,AS30) -> 0.01454265118 | AV30: =IF(AR30<>AS30,INDEX($I$36:$I$53,AR30),INDEX($I$36:$I$53,AR30-1)) -> 4.05 | AW30: =INDEX($I$36:$I$53,AS30) -> 4.15 | AX30: 0.01744579867
A31: 28 | B31: 1963 | C31: 9622 | D31: 3.983265353 | E31: 15000 | F31: 1 | G31: 0.01492537313 | H31: 1 | I31: 14500 | J31: 0.01286449607 | K31: 0.9852937972 | V31: 28 | W31: 0.4117647059 | X31: 0.2230078309 | Y31: 4182 | Z31: 0.4028620334 | AA31: 4120.717447 | AD31: 0.98 | AP31: 14500 | AQ31: 4.161368002 | AR31: =MATCH(AQ31,$I$36:$I$53,1) -> 16 | AS31: =IF(AR31<16,AR31+1,AR31) -> 16 | AT31: =IF(AR31<>AS31,INDEX($J$36:$J$53,AR31),INDEX($J$36:$J$53,AR31-1)) -> 0.02930474468 | AU31: =INDEX($J$36:$J$53,AS31) -> 0.01454265118 | AV31: =IF(AR31<>AS31,INDEX($I$36:$I$53,AR31),INDEX($I$36:$I$53,AR31-1)) -> 4.05 | AW31: =INDEX($I$36:$I$53,AS31) -> 4.15 | AX31: 0.01286449607
A32: 29 | B32: 1964 | C32: 5299 | D32: 3.72419392 | E32: 16000 | F32: 0 | G32: 0 | H32: 1 | I32: 15500 | J32: 0.008588848191 | K32: 0.9887417885 | V32: 29 | W32: 0.4264705882 | X32: 0.1853670173 | Y32: 4145 | Z32: 0.408215663 | AA32: 4022.094339 | AD32: 0.95 | AP32: 15500 | AQ32: 4.190331698 | AR32: =MATCH(AQ32,$I$36:$I$53,1) -> 16 | AS32: =IF(AR32<16,AR32+1,AR32) -> 16 | AT32: =IF(AR32<>AS32,INDEX($J$36:$J$53,AR32),INDEX($J$36:$J$53,AR32-1)) -> 0.02930474468 | AU32: =INDEX($J$36:$J$53,AS32) -> 0.01454265118 | AV32: =IF(AR32<>AS32,INDEX($I$36:$I$53,AR32),INDEX($I$36:$I$53,AR32-1)) -> 4.05 | AW32: =INDEX($I$36:$I$53,AS32) -> 4.15 | AX32: 0.008588848191
A33: 30 | B33: 1965 | C33: 7093 | D33: 3.85082996 | V33: 30 | W33: 0.4411764706 | X33: 0.1479871097 | Y33: 4051 | Z33: 0.4221117563 | AA33: 3926.490874 | AD33: 0.9
A34: 31 | B34: 1966 | C34: 14367 | D34: 4.157366092 | F34: working in log space… | V34: 31 | W34: 0.4558823529 | X34: 0.1108129123 | Y34: 4043 | Z34: 0.4233140673 | AA34: 3833.667364 | AD34: 0.85
A35: 32 | B35: 1967 | C35: 2626 | D35: 3.419294722 | E35: 2.6 | G35: rel freq | H35: cum. freq | I35: index | J35: pdf | K35: cdf | V35: 32 | W35: 0.4705882353 | X35: 0.07379127381 | Y35: 3914 | Z35: 0.4431307887 | AA35: 3743.405751 | AD35: 0.8
A36: 33 | B36: 1968 | C36: 1898 | D36: 3.278296208 | E36: 2.7 | F36: =FREQUENCY(D4:D70,E36:E53) -> 0 | G36: =F36/SUM($F$36:$F$53) -> 0 | H36: =G36 -> 0 | I36: =AVERAGE(E35:E36) -> 2.65 | J36: =NORMDIST(I36,$G$9,$G$10,FALSE)*0.1 -> 0.0007758177598 | K36: =NORMDIST(I36,$G$9,$G$10,TRUE) -> 0.0006200415164 | L36: =10^I36 -> 446.6835922 | V36: 33 | W36: 0.4852941176 | X36: 0.03687053266 | Y36: 3552 | Z36: 0.5030963558 | AA36: 3655.50666 | AD36: 0.75
A37: 34 | B37: 1969 | C37: 8273 | D37: 3.917663024 | E37: 2.8 | F37: 0 | G37: =F37/SUM($F$36:$F$53) -> 0 | H37: =H36+G37 -> 0 | I37: =AVERAGE(E36:E37) -> 2.75 | J37: =NORMDIST(I37,$G$9,$G$10,FALSE)*0.1 -> 0.002310850879 | K37: =NORMDIST(I37,$G$9,$G$10,TRUE) -> 0.002041260281 | L37: =10^I37 -> 562.3413252 | V37: 34 | W37: 0.5 | X37: 0 | Y37: 3419 | Z37: 0.5267329751 | AA37: 3569.786879 | AD37: 0.7
A38: 35 | B38: 1970 | C38: 5646 | D38: 3.751740874 | E38: 2.9 | F38: 1 | G38: =F38/SUM($F$36:$F$53) -> 0.01492537313 | H38: =H37+G38 -> 0.01492537313 | I38: 2.85 | J38: 0.006056068787 | K38: 0.005969679479 | L38: 707.9457844 | V38: 35 | W38: 0.5147058824 | X38: -0.03687053266 | Y38: 3354 | Z38: 0.5385910464 | AA38: 3486.077183 | AD38: 0.65 | AN38: 0 | AO38: 16000
A39: 36 | B39: 1971 | C39: 3552 | D39: 3.550472957 | E39: 3 | F39: 2 | G39: =F39/SUM($F$36:$F$53) -> 0.02985074627 | H39: 0.0447761194 | I39: 2.95 | J39: 0.01396420938 | K39: 0.015536015 | L39: 891.2509381 | V39: 36 | W39: 0.5294117647 | X39: -0.07379127381 | Y39: 3316 | Z39: 0.5456148541 | AA39: 3404.220437 | AD39: 0.6 | AM39: 0.95 | AN39: =NORMSINV(1-AM39) -> -1.644853627 | AO39: =AN39 -> -1.644853627 | AP39: 0
A40: 37 | B40: 1972 | C40: 2041 | D40: 3.309843005 | E40: 3.1 | F40: 1 | G40: =F40/SUM($F$36:$F$53) -> 0.01492537313 | H40: 0.05970149254 | I40: 3.05 | J40: 0.02833013077 | K40: 0.03605947654 | L40: 1122.018454 | V40: 37 | W40: 0.5441176471 | X40: -0.1108129123 | Y40: 3278 | Z40: 0.5527051266 | AA40: 3324.069918 | AD40: 0.55 | AM40: 0.9 | AN40: =NORMSINV(1-AM40) -> -1.281551566 | AO40: =AN40 -> -1.281551566 | AP40: 0
A41: 38 | B41: 1973 | C41: 2700 | D41: 3.431363764 | E41: 3.2 | F41: 4 | G41: =F41/SUM($F$36:$F$53) -> 0.05970149254 | H41: 0.1194029851 | I41: 3.15 | J41: 0.05056936272 | K41: 0.07485113531 | L41: 1412.537545 | V41: 38 | W41: 0.5588235294 | X41: -0.1479871097 | Y41: 3270 | Z41: 0.5542062022 | AA41: 3245.487834 | AD41: 0.5 | AM41: 0.75 | AN41: -0.6744897502 | AO41: -0.6744897502 | AP41: 0
A42: 39 | B42: 1974 | C42: 1545 | D42: 3.188928484 | E42: 3.3 | F42: 4 | G42: =F42/SUM($F$36:$F$53) -> 0.05970149254 | H42: 0.1791044776 | I42: 3.25 | J42: 0.0794205804 | K42: 0.1394483054 | L42: 1778.27941 | V42: 39 | W42: 0.5735294118 | X42: -0.1853670173 | Y42: 3177 | Z42: 0.5718663239 | AA42: 3168.343973 | AD42: 0.45 | AM42: 0.5 | AN42: 0 | AO42: 0 | AP42: 0
A43: 40 | B43: 1975 | C43: 2064 | D43: 3.314709693 | E43: 3.4 | F43: 6 | G43: =F43/SUM($F$36:$F$53) -> 0.08955223881 | H43: 0.2686567164 | I43: 3.35 | J43: 0.1097451425 | K43: 0.2342202558 | L43: 2238.721139 | V43: 40 | W43: 0.5882352941 | X43: -0.2230078309 | Y43: 3165 | Z43: 0.5741727594 | AA43: 3092.514477 | AD43: 0.4 | AM43: 0.25 | AN43: 0.6744897502 | AO43: 0.6744897502 | AP43: 0
A44: 41 | B44: 1976 | C44: 1851 | D44: 3.267406419 | E44: 3.5 | F44: 9 | G44: =F44/SUM($F$36:$F$53) -> 0.1343283582 | H44: 0.4029850746 | I44: 3.45 | J44: 0.1334271567 | K44: 0.3567214149 | L44: 2818.382931 | V44: 41 | W44: 0.6029411765 | X44: -0.2609674004 | Y44: 2986 | Z44: 0.6092901009 | AA44: 3017.880687 | AD44: 0.35 | AM44: 0.1 | AN44: 1.281551566 | AO44: 1.281551566 | AP44: 0
A45: 42 | B45: 1977 | C45: 6610 | D45: 3.820201459 | E45: 3.6 | F45: 9 | G45: =F45/SUM($F$36:$F$53) -> 0.1343283582 | H45: 0.5373134328 | I45: 3.55 | J45: 0.1427282137 | K45: 0.4962285959 | L45: 3548.133892 | V45: 42 | W45: 0.6176470588 | X45: -0.2993069105 | Y45: 2864 | Z45: 0.6339329119 | AA45: 2944.328053 | AD45: 0.3 | AM45: 0.05 | AN45: 1.644853627 | AO45: 1.644853627 | AP45: 0
A46: 43 | B46: 1978 | C46: 1211 | D46: 3.083144143 | E46: 3.7 | F46: 10 | G46: =F46/SUM($F$36:$F$53) -> 0.1492537313 | H46: 0.6865671642 | I46: 3.65 | J46: 0.1343328114 | K46: 0.6362034094 | L46: 4466.835922 | V46: 43 | W46: 0.6323529412 | X46: -0.3380916568 | Y46: 2845 | Z46: 0.6378172879 | AA46: 2871.745075 | AD46: 0.25 | AM46: 0.02 | AN46: 2.053748911 | AO46: 2.053748911 | AP46: 0
A47: 44 | B47: 1979 | C47: 2712 | D47: 3.433289685 | E47: 3.8 | F47: 8 | G47: =F47/SUM($F$36:$F$53) -> 0.1194029851 | H47: 0.8059701493 | I47: 3.75 | J47: 0.1112400184 | K47: 0.7599405929 | L47: 5623.413252 | V47: 44 | W47: 0.6470588235 | X47: -0.3773919438 | Y47: 2828 | Z47: 0.6413027464 | AA47: 2800.022231 | AD47: 0.2 | AM47: 0.01 | AN47: 2.326347874 | AO47: 2.326347874 | AP47: 0
A48: 45 | B48: 1980 | C48: 2828 | D48: 3.451479405 | E48: 3.9 | F48: 5 | G48: =F48/SUM($F$36:$F$53) -> 0.07462686567 | H48: 0.8805970149 | I48: 3.85 | J48: 0.08104881588 | K48: 0.8563116488 | L48: 7079.457844 | V48: 45 | W48: 0.6617647059 | X48: -0.4172841394 | Y48: 2755 | Z48: 0.6563711645 | AA48: 2729.050902 | AD48: 0.15
A49: 46 | B49: 1981 | C49: 3914 | D49: 3.592620821 | E49: 4 | F49: 4 | G49: =F49/SUM($F$36:$F$53) -> 0.05970149254 | H49: =H48+G49 -> 0.9402985075 | I49: =AVERAGE(E48:E49) -> 3.95 | J49: =NORMDIST(I49,$G$9,$G$10,FALSE)*0.1 -> 0.05195639033 | K49: =NORMDIST(I49,$G$9,$G$10,TRUE) -> 0.9224399227 | L49: =10^I49 -> 8912.509381 | V49: 46 | W49: 0.6764705882 | X49: -0.457851931 | Y49: 2712 | Z49: 0.6653186414 | AA49: 2658.722213 | AD49: 0.1
A50: 47 | B50: 1982 | C50: 10694 | D50: 4.02914018 | E50: 4.1 | F50: 3 | G50: 0.0447761194 | H50: 0.9850746269 | I50: 4.05 | J50: 0.02930474468 | K50: 0.9624177433 | L50: 11220.18454 | V50: 47 | W50: 0.6911764706 | X50: -0.4991878421 | Y50: 2700 | Z50: 0.6678243411 | AA50: 2588.925798 | AD50: 0.05
A51: 48 | B51: 1983 | C51: 2864 | D51: 3.456973014 | E51: 4.2 | F51: 1 | G51: 0.01492537313 | H51: 1 | I51: 4.15 | J51: 0.01454265118 | K51: 0.9837108323 | L51: 14125.37545 | V51: 48 | W51: 0.7058823529 | X51: -0.5413950851 | Y51: 2629 | Z51: 0.6827206283 | AA51: 2519.548399 | AD51: 0.02
A52: 49 | B52: 1984 | C52: 2021 | D52: 3.305566314 | E52: 4.3 | F52: 0 | G52: 0 | H52: 1 | I52: 4.25 | J52: 0.00634973948 | K52: 0.9937025747 | L52: 17782.7941 | V52: 49 | W52: 0.7205882353 | X52: -0.5845898571 | Y52: 2626 | Z52: 0.6833525291 | AA52: 2450.472279 | AD52: 0.01
A53: 50 | B53: 1985 | C53: 9478 | D53: 3.976716704 | E53: 4.4 | F53: 0 | G53: 0 | H53: 1 | I53: 4.35 | J53: 0.002439354402 | K53: 0.9978332525 | L53: 22387.21139 | V53: 50 | W53: 0.7352941176 | X53: -0.6289042176 | Y53: 2488 | Z53: 0.7125924119 | AA53: 2381.57333
A54: 51 | B54: 1986 | C54: 1556 | D54: 3.192009593 | F54: 0 | V54: 51 | W54: 0.75 | X54: -0.6744897502 | Y54: 2441 | Z54: 0.7226083853 | AA54: 2312.7188
A55: 52 | B55: 1987 | C55: 3354 | D55: 3.525563058 | F55: =SUM(F36:F53) -> 67 | G55: =SUM(G36:G53) -> 1 | V55: 52 | W55: 0.7647058824 | X55: -0.721522284 | Y55: 2220 | Z55: 0.7697631921 | AA55: 2243.764473
A56: 53 | B56: 1988 | C56: 2488 | D56: 3.395850376 | V56: 53 | W56: 0.7794117647 | X56: -0.7702080819 | Y56: 2064 | Z56: 0.8026934564 | AA56: 2174.5511
A57: 54 | B57: 1989 | C57: 4700 | D57: 3.672097858 | V57: 54 | W57: 0.7941176471 | X57: -0.8207920883 | Y57: 2041 | Z57: 0.8074926021 | AA57: 2104.899766
A58: 55 | B58: 1990 | C58: 7905 | D58: 3.897901874 | V58: 55 | W58: 0.8088235294 | X58: -0.8735691346 | Y58: 2021 | Z58: 0.8116504789 | AA58: 2034.605756
A59: 56 | B59: 1991 | C59: 4145 | D59: 3.617524535 | V59: 56 | W59: 0.8235294118 | X59: -0.9288994916 | Y59: 1908 | Z59: 0.8348220505 | AA59: 1963.430211
A60: 57 | B60: 1992 | C60: 5665 | D60: 3.753199914 | V60: 57 | W60: 0.8382352941 | X60: -0.987230992 | Y60: 1898 | Z60: 0.8368422707 | AA60: 1891.088492
A61: 58 | B61: 1993 | C61: 3165 | D61: 3.500373714 | V61: 58 | W61: 0.8529411765 | X61: -1.049131398 | Y61: 1851 | Z61: 0.846260043 | AA61: 1817.233471
A62: 59 | B62: 1994 | C62: 4043 | D62: 3.606703741 | V62: 59 | W62: 0.8676470588 | X62: -1.115337358 | Y62: 1659 | Z62: 0.8831115056 | AA62: 1741.430729
A63: 60 | B63: 1995 | C63: 7391 | D63: 3.868703202 | V63: 60 | W63: 0.8823529412 | X63: -1.186831433 | Y63: 1556 | Z63: 0.901523428 | AA63: 1663.120263
A64: 61 | B64: 1996 | C64: 1908 | D64: 3.28057837 | V64: 61 | W64: 0.8970588235 | X64: -1.264969245 | Y64: 1549 | Z64: 0.9027337574 | AA64: 1581.554586
A65: 62 | B65: 1997 | C65: 4182 | D65: 3.621384028 | V65: 62 | W65: 0.9117647059 | X65: -1.35170224 | Y65: 1545 | Z65: 0.9034228893 | AA65: 1495.692682
A66: 63 | B66: 1998 | C66: 2845 | D66: 3.454082271 | V66: 63 | W66: 0.9264705882 | X66: -1.449998909 | Y66: 1260 | Z66: 0.947184802 | AA66: 1404.004539
A67: 64 | B67: 1999 | C67: 2220 | D67: 3.346352974 | V67: 64 | W67: 0.9411764706 | X67: -1.564726471 | Y67: 1211 | Z67: 0.9535001796 | AA67: 1304.073984
A68: 65 | B68: 2000 | C68: 5689 | D68: 3.755035934 | V68: 65 | W68: 0.9558823529 | X68: -1.704780905 | Y68: 992 | Z68: 0.9766901186 | AA68: 1191.673016
A69: 66 | B69: 2001 | C69: 4214 | D69: =LOG(C69) -> 3.624694531 | V69: 66 | W69: =V69/($V$70+1) -> 0.9705882353 | X69: =NORMSINV(1-W69) -> -1.88950996 | Y69: =LARGE($C$4:$C$70,V69) -> 975 | Z69: =1-_xlfn.NORM.DIST(LOG(Y69),$G$9,$G$10,TRUE) -> 0.9781312234 | AA69: =10^_xlfn.NORM.INV(1-W69,$G$9,$G$10) -> 1058.096923
A70: 67 | B70: 2002 | C70: 2755 | D70: 3.440121603 | V70: 67 | W70: 0.9852941176 | X70: -2.177923069 | Y70: 746 | Z70: 0.9925040783 | AA70: 878.848812
